Workbook

Sheet O projektu

Sheet Popis appletu
A1: Explorační analýza | L1: © Martina Litschmannová 2011
A2: Autor: | B2: Martina Litschmannová
A3: Email: | B3: martina.litschmannova@vsb.cz
A5: Citace: | B5: Litschmannová, M., 2011, Úvod do statistiky, VŠB-TU Ostrava, multimediální výukový materiál vyhotoveny v rámci projektu projektu „Matematika pro inženýry 21. století -inovace výuky matematiky na technických školách v nových podmínkách rychle se vyvíjející informační a technické společnosti“ ( CZ.1.07/2.2.00/07.0332)
A6: Popis:
A16: Literatura:

Sheet Numerická proměnná
A1: Číselné charakteristiky numerické proměnné a krabicový graf | I1: © Martina Litschmannová 2011
A2: Postup:
A3: 1. Stiskem tlačítka RESET vymažte původní data.
A4: 2. Zadejte nová data
A5: 3. V poli F13 zadejte název proměnné.
A7: Poznámky:
A8: 1. Výpočetní applet analyzuje výběry max. rozsahu 1700 hodnot.
A9: 2. Krabicový graf: Konce vousů označují minimum a maximum po odstranění odlehlých pozorování. Odlehlá pozorování jsou zobrazena "puntíkem", extrémní pozorování jsou zobrazena "čtverečkem". Zelený "čtvrečkek označuje průměr.
A10: 3. Odlehlá a extrémní pozorování jsou v datech označena barevně v souladu s pozadím polí G51 a G58.
F12: Název proměnné | T12: Vnější hradby-dolní mez | U12: =G57 -> 55.25 | W12: Dolní vous | X12: =IF(Rozsah=0,0,U19) -> 77 | Y12: 2 | AA12: Odlehlá pozorování | AB12: 1 | AC12: =SMALL(IF((Tabulka2[Data]<$U$13)*(Tabulka2[Data]<>""),Tabulka2[Data],$U$23),AB12) -> 45 | AD12: 2 | AF12: Extrémní pozorování | AG12: 1 | AH12: =SMALL(IF((Tabulka2[Data]<$U$12)*(Tabulka2[Data]<>""),Tabulka2[Data],$U$23),AG12) -> 45 | AI12: 2
A13: Data | B13: Sloupec1 | C13: OL | D13: OL2 | F13: DATA | I13: Krabicové grafy | T13: Vnitřní hrady - dolní mez | U13: =G51 -> 70.625 | X13: =IF(Rozsah=0,0,U14) -> 86 | Y13: 2 | AB13: 2 | AC13: =SMALL(IF((Tabulka2[Data]<$U$13)*(Tabulka2[Data]<>""),Tabulka2[Data],$U$23),AB13) -> 90.58 | AD13: 2 | AG13: 2 | AH13: =SMALL(IF((Tabulka2[Data]<$U$12)*(Tabulka2[Data]<>""),Tabulka2[Data],$U$23),AG13) -> 90.58 | AI13: 2
A14: 91 | C14: =IF(Tabulka2[[#This Row],[Data]]="","",IF(OR(Tabulka2[[#This Row],[Data]]<$G$57,Tabulka2[[#This Row],[Data]]>$G$58),2,IF(OR(Tabulka2[[#This Row],[Data]]<$G$51,Tabulka2[[#This Row],[Data]]>$G$52),1,0))) -> 0 | T14: dolní kvartil | U14: =Kvartil1 -> 86 | W14: Horní vous | X14: =IF(Rozsah=0,0,U16) -> 96.25 | Y14: 2 | AB14: 3 | AC14: =SMALL(IF((Tabulka2[Data]<$U$13)*(Tabulka2[Data]<>""),Tabulka2[Data],$U$23),AB14) -> 90.58 | AD14: 2 | AG14: 3 | AH14: =SMALL(IF((Tabulka2[Data]<$U$12)*(Tabulka2[Data]<>""),Tabulka2[Data],$U$23),AG14) -> 90.58 | AI14: 2
A15: 95 | C15: =IF(Tabulka2[[#This Row],[Data]]="","",IF(OR(Tabulka2[[#This Row],[Data]]<$G$57,Tabulka2[[#This Row],[Data]]>$G$58),2,IF(OR(Tabulka2[[#This Row],[Data]]<$G$51,Tabulka2[[#This Row],[Data]]>$G$52),1,0))) -> 0 | F15: Rozsah | G15: =COUNTA(Tabulka2[Data]) -> 100 | J15: Data | T15: medián | U15: =Kvartil2 -> 91 | X15: =IF(Rozsah=0,0,U17) -> 111.625 | Y15: 2 | AB15: 4 | AC15: =SMALL(IF((Tabulka2[Data]<$U$13)*(Tabulka2[Data]<>""),Tabulka2[Data],$U$23),AB15) -> 90.58 | AD15: 2 | AG15: 4 | AH15: =SMALL(IF((Tabulka2[Data]<$U$12)*(Tabulka2[Data]<>""),Tabulka2[Data],$U$23),AG15) -> 90.58 | AI15: 2
A16: 94 | C16: =IF(Tabulka2[[#This Row],[Data]]="","",IF(OR(Tabulka2[[#This Row],[Data]]<$G$57,Tabulka2[[#This Row],[Data]]>$G$58),2,IF(OR(Tabulka2[[#This Row],[Data]]<$G$51,Tabulka2[[#This Row],[Data]]>$G$52),1,0))) -> 0 | I16: Vnitřní hradby - max | J16: =G52 -> 111.625 | T16: horní kvartil | U16: =Kvartil3 -> 96.25 | W16: Dno krabice | X16: =IF(Rozsah=0,0,U14) -> 86 | Y16: 1 | AB16: 5 | AC16: =SMALL(IF((Tabulka2[Data]<$U$13)*(Tabulka2[Data]<>""),Tabulka2[Data],$U$23),AB16) -> 90.58 | AD16: 2 | AG16: 5 | AH16: =SMALL(IF((Tabulka2[Data]<$U$12)*(Tabulka2[Data]<>""),Tabulka2[Data],$U$23),AG16) -> 90.58 | AI16: 2
A17: 45 | C17: =IF(Tabulka2[[#This Row],[Data]]="","",IF(OR(Tabulka2[[#This Row],[Data]]<$G$57,Tabulka2[[#This Row],[Data]]>$G$58),2,IF(OR(Tabulka2[[#This Row],[Data]]<$G$51,Tabulka2[[#This Row],[Data]]>$G$52),1,0))) -> 2 | F17: Průměr | G17: =IF(Rozsah=0,"",AVERAGEA(Tabulka2[Data])) -> 90.58 | I17: Horní kvartil | J17: =Kvartil3 -> 96.25 | T17: Vnitřní hrady - horní mez | U17: =G52 -> 111.625 | X17: =IF(Rozsah=0,0,U14) -> 86 | Y17: 3 | AB17: 6 | AC17: =SMALL(IF((Tabulka2[Data]<$U$13)*(Tabulka2[Data]<>""),Tabulka2[Data],$U$23),AB17) -> 90.58 | AD17: 2 | AG17: 6 | AH17: =SMALL(IF((Tabulka2[Data]<$U$12)*(Tabulka2[Data]<>""),Tabulka2[Data],$U$23),AG17) -> 90.58 | AI17: 2
A18: 97 | C18: =IF(Tabulka2[[#This Row],[Data]]="","",IF(OR(Tabulka2[[#This Row],[Data]]<$G$57,Tabulka2[[#This Row],[Data]]>$G$58),2,IF(OR(Tabulka2[[#This Row],[Data]]<$G$51,Tabulka2[[#This Row],[Data]]>$G$52),1,0))) -> 0 | I18: Medián | J18: =Kvartil2 -> 91 | T18: Vnější hradby-horní mez | U18: =G58 -> 127 | W18: Střed krabice | X18: =IF(Rozsah=0,0,U15) -> 91 | Y18: 1 | AB18: 7 | AC18: =SMALL(IF((Tabulka2[Data]<$U$13)*(Tabulka2[Data]<>""),Tabulka2[Data],$U$23),AB18) -> 90.58 | AD18: 2 | AG18: 7 | AH18: =SMALL(IF((Tabulka2[Data]<$U$12)*(Tabulka2[Data]<>""),Tabulka2[Data],$U$23),AG18) -> 90.58 | AI18: 2
A19: 91 | C19: =IF(Tabulka2[[#This Row],[Data]]="","",IF(OR(Tabulka2[[#This Row],[Data]]<$G$57,Tabulka2[[#This Row],[Data]]>$G$58),2,IF(OR(Tabulka2[[#This Row],[Data]]<$G$51,Tabulka2[[#This Row],[Data]]>$G$52),1,0))) -> 0 | F19: Minimum | G19: =IF(Rozsah=0,"",MIN(Tabulka2[Data])) -> 45 | I19: Dolní kvartil | J19: =Kvartil1 -> 86 | T19: MIN-po odstranění odlehlých pozorování | U19: =IF(H51=0,G19,MIN(IF(Tabulka2[Data]>MIN(IF(AC12:AC71<=U13,AC12:AC71)),Tabulka2[Data]))) -> 77 | X19: =IF(Rozsah=0,0,U15) -> 91 | Y19: 3 | AB19: 8 | AC19: =SMALL(IF((Tabulka2[Data]<$U$13)*(Tabulka2[Data]<>""),Tabulka2[Data],$U$23),AB19) -> 90.58 | AD19: 2 | AG19: 8 | AH19: =SMALL(IF((Tabulka2[Data]<$U$12)*(Tabulka2[Data]<>""),Tabulka2[Data],$U$23),AG19) -> 90.58 | AI19: 2
A20: 79 | C20: =IF(Tabulka2[[#This Row],[Data]]="","",IF(OR(Tabulka2[[#This Row],[Data]]<$G$57,Tabulka2[[#This Row],[Data]]>$G$58),2,IF(OR(Tabulka2[[#This Row],[Data]]<$G$51,Tabulka2[[#This Row],[Data]]>$G$52),1,0))) -> 0 | F20: Dolní kvartil | G20: =IF(Rozsah=0,"",QUARTILE(Tabulka2[Data],1)) -> 86 | I20: Vnitřní hradby - min | J20: =G51 -> 70.625 | T20: MAX-po odstranění odlehlých pozorování | U20: =IF(H52=0,G23,MAX(IF(Tabulka2[Data]<MIN(IF(AC12:AC71>=U17,AC12:AC71)),Tabulka2[Data]))) -> 106 | W20: Víko krabice | X20: =IF(Rozsah=0,0,U16) -> 96.25 | Y20: 1 | AB20: 9 | AC20: =SMALL(IF((Tabulka2[Data]<$U$13)*(Tabulka2[Data]<>""),Tabulka2[Data],$U$23),AB20) -> 90.58 | AD20: 2 | AG20: 9 | AH20: =SMALL(IF((Tabulka2[Data]<$U$12)*(Tabulka2[Data]<>""),Tabulka2[Data],$U$23),AG20) -> 90.58 | AI20: 2
A21: 100 | C21: =IF(Tabulka2[[#This Row],[Data]]="","",IF(OR(Tabulka2[[#This Row],[Data]]<$G$57,Tabulka2[[#This Row],[Data]]>$G$58),2,IF(OR(Tabulka2[[#This Row],[Data]]<$G$51,Tabulka2[[#This Row],[Data]]>$G$52),1,0))) -> 0 | F21: Medián | G21: =IF(Rozsah=0,"",QUARTILE(Tabulka2[Data],2)) -> 91 | T21: Rozpětí osy x - MIN | U21: =G19 -> 45 | X21: =IF(Rozsah=0,0,U16) -> 96.25 | Y21: 3 | AB21: 10 | AC21: =SMALL(IF((Tabulka2[Data]<$U$13)*(Tabulka2[Data]<>""),Tabulka2[Data],$U$23),AB21) -> 90.58 | AD21: 2 | AG21: 10 | AH21: =SMALL(IF((Tabulka2[Data]<$U$12)*(Tabulka2[Data]<>""),Tabulka2[Data],$U$23),AG21) -> 90.58 | AI21: 2
A22: 81 | C22: =IF(Tabulka2[[#This Row],[Data]]="","",IF(OR(Tabulka2[[#This Row],[Data]]<$G$57,Tabulka2[[#This Row],[Data]]>$G$58),2,IF(OR(Tabulka2[[#This Row],[Data]]<$G$51,Tabulka2[[#This Row],[Data]]>$G$52),1,0))) -> 0 | F22: Horní kvartil | G22: =IF(Rozsah=0,"",QUARTILE(Tabulka2[Data],3)) -> 96.25 | I22: Průměr | J22: =G17 -> 90.58 | T22: Rozpětí osy x - MAX | U22: =G23 -> 106 | W22: pom1 | X22: =IF(Rozsah=0,0,U14) -> 86 | Y22: 1 | AB22: 11 | AC22: =SMALL(IF((Tabulka2[Data]<$U$13)*(Tabulka2[Data]<>""),Tabulka2[Data],$U$23),AB22) -> 90.58 | AD22: 2 | AG22: 11 | AH22: =SMALL(IF((Tabulka2[Data]<$U$12)*(Tabulka2[Data]<>""),Tabulka2[Data],$U$23),AG22) -> 90.58 | AI22: 2
A23: 89 | C23: =IF(Tabulka2[[#This Row],[Data]]="","",IF(OR(Tabulka2[[#This Row],[Data]]<$G$57,Tabulka2[[#This Row],[Data]]>$G$58),2,IF(OR(Tabulka2[[#This Row],[Data]]<$G$51,Tabulka2[[#This Row],[Data]]>$G$52),1,0))) -> 0 | F23: Maximum | G23: =IF(Rozsah=0,"",MAX(Tabulka2[Data])) -> 106 | T23: Průměr | U23: =G17 -> 90.58 | X23: =IF(Rozsah=0,0,U16) -> 96.25 | Y23: 1 | AB23: 12 | AC23: =SMALL(IF((Tabulka2[Data]<$U$13)*(Tabulka2[Data]<>""),Tabulka2[Data],$U$23),AB23) -> 90.58 | AD23: 2 | AG23: 12 | AH23: =SMALL(IF((Tabulka2[Data]<$U$12)*(Tabulka2[Data]<>""),Tabulka2[Data],$U$23),AG23) -> 90.58 | AI23: 2
A24: 92 | C24: =IF(Tabulka2[[#This Row],[Data]]="","",IF(OR(Tabulka2[[#This Row],[Data]]<$G$57,Tabulka2[[#This Row],[Data]]>$G$58),2,IF(OR(Tabulka2[[#This Row],[Data]]<$G$51,Tabulka2[[#This Row],[Data]]>$G$52),1,0))) -> 0 | I24: Délka dolního vousu | J24: =IF(Rozsah=0,"",J19-J20) -> 15.375 | W24: pom2 | X24: =IF(Rozsah=0,0,U14) -> 86 | Y24: 3 | AB24: 13 | AC24: =SMALL(IF((Tabulka2[Data]<$U$13)*(Tabulka2[Data]<>""),Tabulka2[Data],$U$23),AB24) -> 90.58 | AD24: 2 | AG24: 13 | AH24: =SMALL(IF((Tabulka2[Data]<$U$12)*(Tabulka2[Data]<>""),Tabulka2[Data],$U$23),AG24) -> 90.58 | AI24: 2
A25: 82 | C25: =IF(Tabulka2[[#This Row],[Data]]="","",IF(OR(Tabulka2[[#This Row],[Data]]<$G$57,Tabulka2[[#This Row],[Data]]>$G$58),2,IF(OR(Tabulka2[[#This Row],[Data]]<$G$51,Tabulka2[[#This Row],[Data]]>$G$52),1,0))) -> 0 | F25: Rozptyl | G25: =IF(Rozsah=0,"",VAR(Tabulka2[Data])) -> 62.42787879 | I25: Délka prvního segmentu | J25: =J19 -> 86 | X25: =IF(Rozsah=0,0,U16) -> 96.25 | Y25: 3 | AB25: 14 | AC25: =SMALL(IF((Tabulka2[Data]<$U$13)*(Tabulka2[Data]<>""),Tabulka2[Data],$U$23),AB25) -> 90.58 | AD25: 2 | AG25: 14 | AH25: =SMALL(IF((Tabulka2[Data]<$U$12)*(Tabulka2[Data]<>""),Tabulka2[Data],$U$23),AG25) -> 90.58 | AI25: 2
A26: 100 | C26: =IF(Tabulka2[[#This Row],[Data]]="","",IF(OR(Tabulka2[[#This Row],[Data]]<$G$57,Tabulka2[[#This Row],[Data]]>$G$58),2,IF(OR(Tabulka2[[#This Row],[Data]]<$G$51,Tabulka2[[#This Row],[Data]]>$G$52),1,0))) -> 0 | F26: Směrodatná odchylka | G26: =IF(Rozsah=0,"",STDEV(Tabulka2[Data])) -> 7.901131488 | I26: Délka druhého segmentu | J26: =IF(Rozsah=0,"",J18-J19) -> 5 | W26: Min grafu | X26: =IF(Rozsah=0,0,IF(U21=0,-10,IF(U21>0,0.9*U21,1.1*U21))) -> 40.5 | Y26: 1 | AB26: 15 | AC26: =SMALL(IF((Tabulka2[Data]<$U$13)*(Tabulka2[Data]<>""),Tabulka2[Data],$U$23),AB26) -> 90.58 | AD26: 2 | AG26: 15 | AH26: =SMALL(IF((Tabulka2[Data]<$U$12)*(Tabulka2[Data]<>""),Tabulka2[Data],$U$23),AG26) -> 90.58 | AI26: 2
A27: 87 | C27: =IF(Tabulka2[[#This Row],[Data]]="","",IF(OR(Tabulka2[[#This Row],[Data]]<$G$57,Tabulka2[[#This Row],[Data]]>$G$58),2,IF(OR(Tabulka2[[#This Row],[Data]]<$G$51,Tabulka2[[#This Row],[Data]]>$G$52),1,0))) -> 0 | F27: Variační koeficient | G27: =IF(Rozsah=0,"",IF(SUM(Tabulka2[Sloupec1])=0,G26/G17,"")) -> 0.0872282125 | I27: Délka třetího segmentu | J27: =IF(Rozsah=0,"",J17-J18) -> 5.25 | W27: Max grafu | X27: =IF(Rozsah=0,0,IF(U22=0,10,IF(U22<0,0.9*U22,1.1*U22))) -> 116.6 | Y27: 1 | AB27: 16 | AC27: =SMALL(IF((Tabulka2[Data]<$U$13)*(Tabulka2[Data]<>""),Tabulka2[Data],$U$23),AB27) -> 90.58 | AD27: 2 | AG27: 16 | AH27: =SMALL(IF((Tabulka2[Data]<$U$12)*(Tabulka2[Data]<>""),Tabulka2[Data],$U$23),AG27) -> 90.58 | AI27: 2
A28: 92 | C28: =IF(Tabulka2[[#This Row],[Data]]="","",IF(OR(Tabulka2[[#This Row],[Data]]<$G$57,Tabulka2[[#This Row],[Data]]>$G$58),2,IF(OR(Tabulka2[[#This Row],[Data]]<$G$51,Tabulka2[[#This Row],[Data]]>$G$52),1,0))) -> 0 | I28: Délka horního vousu | J28: =IF(Rozsah=0,"",J16-J17) -> 15.375 | W28: Průměr | X28: =IF(Rozsah=0,0,U23) -> 90.58 | Y28: 2 | AB28: 17 | AC28: =SMALL(IF((Tabulka2[Data]<$U$13)*(Tabulka2[Data]<>""),Tabulka2[Data],$U$23),AB28) -> 90.58 | AD28: 2 | AG28: 17 | AH28: =SMALL(IF((Tabulka2[Data]<$U$12)*(Tabulka2[Data]<>""),Tabulka2[Data],$U$23),AG28) -> 90.58 | AI28: 2
A29: 94 | C29: =IF(Tabulka2[[#This Row],[Data]]="","",IF(OR(Tabulka2[[#This Row],[Data]]<$G$57,Tabulka2[[#This Row],[Data]]>$G$58),2,IF(OR(Tabulka2[[#This Row],[Data]]<$G$51,Tabulka2[[#This Row],[Data]]>$G$52),1,0))) -> 0 | F29: Šikmost | G29: =IF(Rozsah=0,"",SKEW(Tabulka2[Data])) -> -1.804680309 | AB29: 18 | AC29: =SMALL(IF((Tabulka2[Data]<$U$13)*(Tabulka2[Data]<>""),Tabulka2[Data],$U$23),AB29) -> 90.58 | AD29: 2 | AG29: 18 | AH29: =SMALL(IF((Tabulka2[Data]<$U$12)*(Tabulka2[Data]<>""),Tabulka2[Data],$U$23),AG29) -> 90.58 | AI29: 2
A30: 86 | C30: =IF(Tabulka2[[#This Row],[Data]]="","",IF(OR(Tabulka2[[#This Row],[Data]]<$G$57,Tabulka2[[#This Row],[Data]]>$G$58),2,IF(OR(Tabulka2[[#This Row],[Data]]<$G$51,Tabulka2[[#This Row],[Data]]>$G$52),1,0))) -> 0 | F30: Špičatost | G30: =IF(Rozsah=0,"",KURT(Tabulka2[Data])) -> 9.880510804 | AB30: 19 | AC30: =SMALL(IF((Tabulka2[Data]<$U$13)*(Tabulka2[Data]<>""),Tabulka2[Data],$U$23),AB30) -> 90.58 | AD30: 2 | AG30: 19 | AH30: =SMALL(IF((Tabulka2[Data]<$U$12)*(Tabulka2[Data]<>""),Tabulka2[Data],$U$23),AG30) -> 90.58 | AI30: 2
A31: 98 | C31: =IF(Tabulka2[[#This Row],[Data]]="","",IF(OR(Tabulka2[[#This Row],[Data]]<$G$57,Tabulka2[[#This Row],[Data]]>$G$58),2,IF(OR(Tabulka2[[#This Row],[Data]]<$G$51,Tabulka2[[#This Row],[Data]]>$G$52),1,0))) -> 0 | AB31: 20 | AC31: =SMALL(IF((Tabulka2[Data]<$U$13)*(Tabulka2[Data]<>""),Tabulka2[Data],$U$23),AB31) -> 90.58 | AD31: 2 | AG31: 20 | AH31: =SMALL(IF((Tabulka2[Data]<$U$12)*(Tabulka2[Data]<>""),Tabulka2[Data],$U$23),AG31) -> 90.58 | AI31: 2
A32: 104 | C32: =IF(Tabulka2[[#This Row],[Data]]="","",IF(OR(Tabulka2[[#This Row],[Data]]<$G$57,Tabulka2[[#This Row],[Data]]>$G$58),2,IF(OR(Tabulka2[[#This Row],[Data]]<$G$51,Tabulka2[[#This Row],[Data]]>$G$52),1,0))) -> 0 | F32: Klasický odhad střední hodnoty | I32: Test normality (Kombinovaý test na základě šikmosti a špičatosti) | AB32: 21 | AC32: =SMALL(IF((Tabulka2[Data]<$U$13)*(Tabulka2[Data]<>""),Tabulka2[Data],$U$23),AB32) -> 90.58 | AD32: 2 | AG32: 21 | AH32: =SMALL(IF((Tabulka2[Data]<$U$12)*(Tabulka2[Data]<>""),Tabulka2[Data],$U$23),AG32) -> 90.58 | AI32: 2
A33: 88 | C33: =IF(Tabulka2[[#This Row],[Data]]="","",IF(OR(Tabulka2[[#This Row],[Data]]<$G$57,Tabulka2[[#This Row],[Data]]>$G$58),2,IF(OR(Tabulka2[[#This Row],[Data]]<$G$51,Tabulka2[[#This Row],[Data]]>$G$52),1,0))) -> 0 | AB33: 22 | AC33: =SMALL(IF((Tabulka2[Data]<$U$13)*(Tabulka2[Data]<>""),Tabulka2[Data],$U$23),AB33) -> 90.58 | AD33: 2 | AG33: 22 | AH33: =SMALL(IF((Tabulka2[Data]<$U$12)*(Tabulka2[Data]<>""),Tabulka2[Data],$U$23),AG33) -> 90.58 | AI33: 2
A34: 97 | C34: =IF(Tabulka2[[#This Row],[Data]]="","",IF(OR(Tabulka2[[#This Row],[Data]]<$G$57,Tabulka2[[#This Row],[Data]]>$G$58),2,IF(OR(Tabulka2[[#This Row],[Data]]<$G$51,Tabulka2[[#This Row],[Data]]>$G$52),1,0))) -> 0 | F34: Průměr | G34: =IF(Rozsah=0,"",AVERAGEA(Tabulka2[Data])) -> 90.58 | I34: Hladina významnosti | J34: 0.01 | AB34: 23 | AC34: =SMALL(IF((Tabulka2[Data]<$U$13)*(Tabulka2[Data]<>""),Tabulka2[Data],$U$23),AB34) -> 90.58 | AD34: 2 | AG34: 23 | AH34: =SMALL(IF((Tabulka2[Data]<$U$12)*(Tabulka2[Data]<>""),Tabulka2[Data],$U$23),AG34) -> 90.58 | AI34: 2
A35: 81 | C35: =IF(Tabulka2[[#This Row],[Data]]="","",IF(OR(Tabulka2[[#This Row],[Data]]<$G$57,Tabulka2[[#This Row],[Data]]>$G$58),2,IF(OR(Tabulka2[[#This Row],[Data]]<$G$51,Tabulka2[[#This Row],[Data]]>$G$52),1,0))) -> 0 | F35: Dolní mez intervalového odhadu střední hodnoty (95%) | G35: =IF(Rozsah=0,"",G17-TINV(0.05,Rozsah-1)*G26/SQRT(Rozsah)) -> 89.0122441 | I35: ='Test normality'!A11 -> Na hladině významnosti 0,01 zamítáme předpoklad o normalitě výběru (p-hodnota<<<0,001). | AB35: 24 | AC35: =SMALL(IF((Tabulka2[Data]<$U$13)*(Tabulka2[Data]<>""),Tabulka2[Data],$U$23),AB35) -> 90.58 | AD35: 2 | AG35: 24 | AH35: =SMALL(IF((Tabulka2[Data]<$U$12)*(Tabulka2[Data]<>""),Tabulka2[Data],$U$23),AG35) -> 90.58 | AI35: 2
A36: 92 | C36: =IF(Tabulka2[[#This Row],[Data]]="","",IF(OR(Tabulka2[[#This Row],[Data]]<$G$57,Tabulka2[[#This Row],[Data]]>$G$58),2,IF(OR(Tabulka2[[#This Row],[Data]]<$G$51,Tabulka2[[#This Row],[Data]]>$G$52),1,0))) -> 0 | F36: Horní mez intervalového odhadu střední hodnoty (95%) | G36: =IF(Rozsah=0,"",G17+TINV(0.05,(Rozsah-1))*G26/SQRT(Rozsah)) -> 92.1477559 | AB36: 25 | AC36: =SMALL(IF((Tabulka2[Data]<$U$13)*(Tabulka2[Data]<>""),Tabulka2[Data],$U$23),AB36) -> 90.58 | AD36: 2 | AG36: 25 | AH36: =SMALL(IF((Tabulka2[Data]<$U$12)*(Tabulka2[Data]<>""),Tabulka2[Data],$U$23),AG36) -> 90.58 | AI36: 2
A37: 88 | C37: =IF(Tabulka2[[#This Row],[Data]]="","",IF(OR(Tabulka2[[#This Row],[Data]]<$G$57,Tabulka2[[#This Row],[Data]]>$G$58),2,IF(OR(Tabulka2[[#This Row],[Data]]<$G$51,Tabulka2[[#This Row],[Data]]>$G$52),1,0))) -> 0 | AB37: 26 | AC37: =SMALL(IF((Tabulka2[Data]<$U$13)*(Tabulka2[Data]<>""),Tabulka2[Data],$U$23),AB37) -> 90.58 | AD37: 2 | AG37: 26 | AH37: =SMALL(IF((Tabulka2[Data]<$U$12)*(Tabulka2[Data]<>""),Tabulka2[Data],$U$23),AG37) -> 90.58 | AI37: 2
A38: 94 | C38: =IF(Tabulka2[[#This Row],[Data]]="","",IF(OR(Tabulka2[[#This Row],[Data]]<$G$57,Tabulka2[[#This Row],[Data]]>$G$58),2,IF(OR(Tabulka2[[#This Row],[Data]]<$G$51,Tabulka2[[#This Row],[Data]]>$G$52),1,0))) -> 0 | F38: Robustní odhad střední hodnoty | AB38: 27 | AC38: =SMALL(IF((Tabulka2[Data]<$U$13)*(Tabulka2[Data]<>""),Tabulka2[Data],$U$23),AB38) -> 90.58 | AD38: 2 | AG38: 27 | AH38: =SMALL(IF((Tabulka2[Data]<$U$12)*(Tabulka2[Data]<>""),Tabulka2[Data],$U$23),AG38) -> 90.58 | AI38: 2
A39: 101 | C39: =IF(Tabulka2[[#This Row],[Data]]="","",IF(OR(Tabulka2[[#This Row],[Data]]<$G$57,Tabulka2[[#This Row],[Data]]>$G$58),2,IF(OR(Tabulka2[[#This Row],[Data]]<$G$51,Tabulka2[[#This Row],[Data]]>$G$52),1,0))) -> 0 | AB39: 28 | AC39: =SMALL(IF((Tabulka2[Data]<$U$13)*(Tabulka2[Data]<>""),Tabulka2[Data],$U$23),AB39) -> 90.58 | AD39: 2 | AG39: 28 | AH39: =SMALL(IF((Tabulka2[Data]<$U$12)*(Tabulka2[Data]<>""),Tabulka2[Data],$U$23),AG39) -> 90.58 | AI39: 2
A40: 91 | C40: =IF(Tabulka2[[#This Row],[Data]]="","",IF(OR(Tabulka2[[#This Row],[Data]]<$G$57,Tabulka2[[#This Row],[Data]]>$G$58),2,IF(OR(Tabulka2[[#This Row],[Data]]<$G$51,Tabulka2[[#This Row],[Data]]>$G$52),1,0))) -> 0 | F40: Medián | G40: =IF(Rozsah=0,"",Kvartil2) -> 91 | AB40: 29 | AC40: =SMALL(IF((Tabulka2[Data]<$U$13)*(Tabulka2[Data]<>""),Tabulka2[Data],$U$23),AB40) -> 90.58 | AD40: 2 | AG40: 29 | AH40: =SMALL(IF((Tabulka2[Data]<$U$12)*(Tabulka2[Data]<>""),Tabulka2[Data],$U$23),AG40) -> 90.58 | AI40: 2
A41: 91 | C41: =IF(Tabulka2[[#This Row],[Data]]="","",IF(OR(Tabulka2[[#This Row],[Data]]<$G$57,Tabulka2[[#This Row],[Data]]>$G$58),2,IF(OR(Tabulka2[[#This Row],[Data]]<$G$51,Tabulka2[[#This Row],[Data]]>$G$52),1,0))) -> 0 | F41: Dolní mez intervalového odhadu mediánu (95%) | G41: =IF(Rozsah=0,"",Kvartil2-1.57*(Kvartil3-Kvartil1)/SQRT(Rozsah)) -> 89.39075 | AB41: 30 | AC41: =SMALL(IF((Tabulka2[Data]<$U$13)*(Tabulka2[Data]<>""),Tabulka2[Data],$U$23),AB41) -> 90.58 | AD41: 2 | AG41: 30 | AH41: =SMALL(IF((Tabulka2[Data]<$U$12)*(Tabulka2[Data]<>""),Tabulka2[Data],$U$23),AG41) -> 90.58 | AI41: 2
A42: 93 | C42: =IF(Tabulka2[[#This Row],[Data]]="","",IF(OR(Tabulka2[[#This Row],[Data]]<$G$57,Tabulka2[[#This Row],[Data]]>$G$58),2,IF(OR(Tabulka2[[#This Row],[Data]]<$G$51,Tabulka2[[#This Row],[Data]]>$G$52),1,0))) -> 0 | F42: Horní mez intervalového odhadu mediánu (95%) | G42: =IF(Rozsah=0,"",Kvartil2+1.57*(Kvartil3-Kvartil1)/SQRT(Rozsah)) -> 92.60925 | AB42: 1 | AC42: =SMALL(IF((Tabulka2[Data]<$U$13)*(Tabulka2[Data]<>""),Tabulka2[Data],$U$23),AB42) -> 45 | AD42: 2 | AG42: 1 | AH42: =LARGE(IF((Tabulka2[Data]>$U$18)*(Tabulka2[Data]<>""),Tabulka2[Data],$U$23),AG42) -> 90.58 | AI42: 2
A43: 89 | C43: =IF(Tabulka2[[#This Row],[Data]]="","",IF(OR(Tabulka2[[#This Row],[Data]]<$G$57,Tabulka2[[#This Row],[Data]]>$G$58),2,IF(OR(Tabulka2[[#This Row],[Data]]<$G$51,Tabulka2[[#This Row],[Data]]>$G$52),1,0))) -> 0 | AB43: 2 | AC43: =SMALL(IF((Tabulka2[Data]<$U$13)*(Tabulka2[Data]<>""),Tabulka2[Data],$U$23),AB43) -> 90.58 | AD43: 2 | AG43: 2 | AH43: =LARGE(IF((Tabulka2[Data]>$U$18)*(Tabulka2[Data]<>""),Tabulka2[Data],$U$23),AG43) -> 90.58 | AI43: 2
A44: 87 | C44: =IF(Tabulka2[[#This Row],[Data]]="","",IF(OR(Tabulka2[[#This Row],[Data]]<$G$57,Tabulka2[[#This Row],[Data]]>$G$58),2,IF(OR(Tabulka2[[#This Row],[Data]]<$G$51,Tabulka2[[#This Row],[Data]]>$G$52),1,0))) -> 0 | F44: Gastwirthův medián | G44: =IF(Rozsah=0,"",0.4*G21+0.3*(PERCENTILE(Tabulka2[Data],0.33)+PERCENTILE(Tabulka2[Data],0.67))) -> 90.7 | AB44: 3 | AC44: =SMALL(IF((Tabulka2[Data]<$U$13)*(Tabulka2[Data]<>""),Tabulka2[Data],$U$23),AB44) -> 90.58 | AD44: 2 | AG44: 3 | AH44: =LARGE(IF((Tabulka2[Data]>$U$18)*(Tabulka2[Data]<>""),Tabulka2[Data],$U$23),AG44) -> 90.58 | AI44: 2
A45: 85 | C45: =IF(Tabulka2[[#This Row],[Data]]="","",IF(OR(Tabulka2[[#This Row],[Data]]<$G$57,Tabulka2[[#This Row],[Data]]>$G$58),2,IF(OR(Tabulka2[[#This Row],[Data]]<$G$51,Tabulka2[[#This Row],[Data]]>$G$52),1,0))) -> 0 | F45: Dolní mez intervalového odhadu střední hodnoty (95%) | G45: =IF(Rozsah=0,"",G44-1.57*(Kvartil3-Kvartil1)/SQRT(G15)) -> 89.09075 | AB45: 4 | AC45: =SMALL(IF((Tabulka2[Data]<$U$13)*(Tabulka2[Data]<>""),Tabulka2[Data],$U$23),AB45) -> 90.58 | AD45: 2 | AG45: 4 | AH45: =LARGE(IF((Tabulka2[Data]>$U$18)*(Tabulka2[Data]<>""),Tabulka2[Data],$U$23),AG45) -> 90.58 | AI45: 2
A46: 87 | C46: =IF(Tabulka2[[#This Row],[Data]]="","",IF(OR(Tabulka2[[#This Row],[Data]]<$G$57,Tabulka2[[#This Row],[Data]]>$G$58),2,IF(OR(Tabulka2[[#This Row],[Data]]<$G$51,Tabulka2[[#This Row],[Data]]>$G$52),1,0))) -> 0 | F46: Horní mez intervalového odhadu střední hodnoty (95%) | G46: =IF(Rozsah=0,"",G44+1.57*(Kvartil3-Kvartil1)/SQRT(G15)) -> 92.30925 | AB46: 5 | AC46: =SMALL(IF((Tabulka2[Data]<$U$13)*(Tabulka2[Data]<>""),Tabulka2[Data],$U$23),AB46) -> 90.58 | AD46: 2 | AG46: 5 | AH46: =LARGE(IF((Tabulka2[Data]>$U$18)*(Tabulka2[Data]<>""),Tabulka2[Data],$U$23),AG46) -> 90.58 | AI46: 2
A47: 95 | C47: =IF(Tabulka2[[#This Row],[Data]]="","",IF(OR(Tabulka2[[#This Row],[Data]]<$G$57,Tabulka2[[#This Row],[Data]]>$G$58),2,IF(OR(Tabulka2[[#This Row],[Data]]<$G$51,Tabulka2[[#This Row],[Data]]>$G$52),1,0))) -> 0 | AB47: 6 | AC47: =SMALL(IF((Tabulka2[Data]<$U$13)*(Tabulka2[Data]<>""),Tabulka2[Data],$U$23),AB47) -> 90.58 | AD47: 2 | AG47: 6 | AH47: =LARGE(IF((Tabulka2[Data]>$U$18)*(Tabulka2[Data]<>""),Tabulka2[Data],$U$23),AG47) -> 90.58 | AI47: 2
A48: 84 | C48: =IF(Tabulka2[[#This Row],[Data]]="","",IF(OR(Tabulka2[[#This Row],[Data]]<$G$57,Tabulka2[[#This Row],[Data]]>$G$58),2,IF(OR(Tabulka2[[#This Row],[Data]]<$G$51,Tabulka2[[#This Row],[Data]]>$G$52),1,0))) -> 0 | F48: Identifikace odlehlých pozorování | AB48: 7 | AC48: =SMALL(IF((Tabulka2[Data]<$U$13)*(Tabulka2[Data]<>""),Tabulka2[Data],$U$23),AB48) -> 90.58 | AD48: 2 | AG48: 7 | AH48: =LARGE(IF((Tabulka2[Data]>$U$18)*(Tabulka2[Data]<>""),Tabulka2[Data],$U$23),AG48) -> 90.58 | AI48: 2
A49: 91 | C49: =IF(Tabulka2[[#This Row],[Data]]="","",IF(OR(Tabulka2[[#This Row],[Data]]<$G$57,Tabulka2[[#This Row],[Data]]>$G$58),2,IF(OR(Tabulka2[[#This Row],[Data]]<$G$51,Tabulka2[[#This Row],[Data]]>$G$52),1,0))) -> 0 | AB49: 8 | AC49: =SMALL(IF((Tabulka2[Data]<$U$13)*(Tabulka2[Data]<>""),Tabulka2[Data],$U$23),AB49) -> 90.58 | AD49: 2 | AG49: 8 | AH49: =LARGE(IF((Tabulka2[Data]>$U$18)*(Tabulka2[Data]<>""),Tabulka2[Data],$U$23),AG49) -> 90.58 | AI49: 2
A50: 98 | C50: =IF(Tabulka2[[#This Row],[Data]]="","",IF(OR(Tabulka2[[#This Row],[Data]]<$G$57,Tabulka2[[#This Row],[Data]]>$G$58),2,IF(OR(Tabulka2[[#This Row],[Data]]<$G$51,Tabulka2[[#This Row],[Data]]>$G$52),1,0))) -> 0 | F50: Vnitřní hradby | AB50: 9 | AC50: =SMALL(IF((Tabulka2[Data]<$U$13)*(Tabulka2[Data]<>""),Tabulka2[Data],$U$23),AB50) -> 90.58 | AD50: 2 | AG50: 9 | AH50: =LARGE(IF((Tabulka2[Data]>$U$18)*(Tabulka2[Data]<>""),Tabulka2[Data],$U$23),AG50) -> 90.58 | AI50: 2
A51: 97 | C51: =IF(Tabulka2[[#This Row],[Data]]="","",IF(OR(Tabulka2[[#This Row],[Data]]<$G$57,Tabulka2[[#This Row],[Data]]>$G$58),2,IF(OR(Tabulka2[[#This Row],[Data]]<$G$51,Tabulka2[[#This Row],[Data]]>$G$52),1,0))) -> 0 | F51: Dolní mez | G51: =IF(Rozsah=0,"",Kvartil1-1.5*(Kvartil3-Kvartil1)) -> 70.625 | H51: =COUNT(IF((Tabulka2[Data]<$G$51)*(Tabulka2[Data]<>""),Tabulka2[Data])) -> 1 | AB51: 10 | AC51: =SMALL(IF((Tabulka2[Data]<$U$13)*(Tabulka2[Data]<>""),Tabulka2[Data],$U$23),AB51) -> 90.58 | AD51: 2 | AG51: 10 | AH51: =LARGE(IF((Tabulka2[Data]>$U$18)*(Tabulka2[Data]<>""),Tabulka2[Data],$U$23),AG51) -> 90.58 | AI51: 2
A52: 85 | C52: =IF(Tabulka2[[#This Row],[Data]]="","",IF(OR(Tabulka2[[#This Row],[Data]]<$G$57,Tabulka2[[#This Row],[Data]]>$G$58),2,IF(OR(Tabulka2[[#This Row],[Data]]<$G$51,Tabulka2[[#This Row],[Data]]>$G$52),1,0))) -> 0 | F52: Horní mez | G52: =IF(Rozsah=0,"",Kvartil3+1.5*(Kvartil3-Kvartil1)) -> 111.625 | H52: =COUNT(IF((Tabulka2[Data]>$G$52)*(Tabulka2[Data]<>""),Tabulka2[Data])) -> 0 | AB52: 11 | AC52: =SMALL(IF((Tabulka2[Data]<$U$13)*(Tabulka2[Data]<>""),Tabulka2[Data],$U$23),AB52) -> 90.58 | AD52: 2 | AG52: 11 | AH52: =LARGE(IF((Tabulka2[Data]>$U$18)*(Tabulka2[Data]<>""),Tabulka2[Data],$U$23),AG52) -> 90.58 | AI52: 2
A53: 90 | C53: =IF(Tabulka2[[#This Row],[Data]]="","",IF(OR(Tabulka2[[#This Row],[Data]]<$G$57,Tabulka2[[#This Row],[Data]]>$G$58),2,IF(OR(Tabulka2[[#This Row],[Data]]<$G$51,Tabulka2[[#This Row],[Data]]>$G$52),1,0))) -> 0 | AB53: 12 | AC53: =SMALL(IF((Tabulka2[Data]<$U$13)*(Tabulka2[Data]<>""),Tabulka2[Data],$U$23),AB53) -> 90.58 | AD53: 2 | AG53: 12 | AH53: =LARGE(IF((Tabulka2[Data]>$U$18)*(Tabulka2[Data]<>""),Tabulka2[Data],$U$23),AG53) -> 90.58 | AI53: 2
A54: 91 | C54: =IF(Tabulka2[[#This Row],[Data]]="","",IF(OR(Tabulka2[[#This Row],[Data]]<$G$57,Tabulka2[[#This Row],[Data]]>$G$58),2,IF(OR(Tabulka2[[#This Row],[Data]]<$G$51,Tabulka2[[#This Row],[Data]]>$G$52),1,0))) -> 0 | F54: Počet odlehlých pozorování | G54: =IF(Rozsah=0,"",Rozsah-COUNT(IF((Tabulka2[Data]<>"")*(Tabulka2[Data]>=$G$51)*(Tabulka2[Data]<=$G$52),Tabulka2[Data]))) -> 1 | AB54: 13 | AC54: =SMALL(IF((Tabulka2[Data]<$U$13)*(Tabulka2[Data]<>""),Tabulka2[Data],$U$23),AB54) -> 90.58 | AD54: 2 | AG54: 13 | AH54: =LARGE(IF((Tabulka2[Data]>$U$18)*(Tabulka2[Data]<>""),Tabulka2[Data],$U$23),AG54) -> 90.58 | AI54: 2
A55: 95 | C55: =IF(Tabulka2[[#This Row],[Data]]="","",IF(OR(Tabulka2[[#This Row],[Data]]<$G$57,Tabulka2[[#This Row],[Data]]>$G$58),2,IF(OR(Tabulka2[[#This Row],[Data]]<$G$51,Tabulka2[[#This Row],[Data]]>$G$52),1,0))) -> 0 | AB55: 14 | AC55: =SMALL(IF((Tabulka2[Data]<$U$13)*(Tabulka2[Data]<>""),Tabulka2[Data],$U$23),AB55) -> 90.58 | AD55: 2 | AG55: 14 | AH55: =LARGE(IF((Tabulka2[Data]>$U$18)*(Tabulka2[Data]<>""),Tabulka2[Data],$U$23),AG55) -> 90.58 | AI55: 2
A56: 101 | C56: =IF(Tabulka2[[#This Row],[Data]]="","",IF(OR(Tabulka2[[#This Row],[Data]]<$G$57,Tabulka2[[#This Row],[Data]]>$G$58),2,IF(OR(Tabulka2[[#This Row],[Data]]<$G$51,Tabulka2[[#This Row],[Data]]>$G$52),1,0))) -> 0 | F56: Vnější hradby | AB56: 15 | AC56: =SMALL(IF((Tabulka2[Data]<$U$13)*(Tabulka2[Data]<>""),Tabulka2[Data],$U$23),AB56) -> 90.58 | AD56: 2 | AG56: 15 | AH56: =LARGE(IF((Tabulka2[Data]>$U$18)*(Tabulka2[Data]<>""),Tabulka2[Data],$U$23),AG56) -> 90.58 | AI56: 2
A57: 96 | C57: =IF(Tabulka2[[#This Row],[Data]]="","",IF(OR(Tabulka2[[#This Row],[Data]]<$G$57,Tabulka2[[#This Row],[Data]]>$G$58),2,IF(OR(Tabulka2[[#This Row],[Data]]<$G$51,Tabulka2[[#This Row],[Data]]>$G$52),1,0))) -> 0 | F57: Dolní mez | G57: =IF(Rozsah=0,"",Kvartil1-3*(Kvartil3-Kvartil1)) -> 55.25 | AB57: 16 | AC57: =SMALL(IF((Tabulka2[Data]<$U$13)*(Tabulka2[Data]<>""),Tabulka2[Data],$U$23),AB57) -> 90.58 | AD57: 2 | AG57: 16 | AH57: =LARGE(IF((Tabulka2[Data]>$U$18)*(Tabulka2[Data]<>""),Tabulka2[Data],$U$23),AG57) -> 90.58 | AI57: 2
A58: 86 | C58: =IF(Tabulka2[[#This Row],[Data]]="","",IF(OR(Tabulka2[[#This Row],[Data]]<$G$57,Tabulka2[[#This Row],[Data]]>$G$58),2,IF(OR(Tabulka2[[#This Row],[Data]]<$G$51,Tabulka2[[#This Row],[Data]]>$G$52),1,0))) -> 0 | F58: Horní mez | G58: =IF(Rozsah=0,"",Kvartil3+3*(Kvartil3-Kvartil1)) -> 127 | AB58: 17 | AC58: =SMALL(IF((Tabulka2[Data]<$U$13)*(Tabulka2[Data]<>""),Tabulka2[Data],$U$23),AB58) -> 90.58 | AD58: 2 | AG58: 17 | AH58: =LARGE(IF((Tabulka2[Data]>$U$18)*(Tabulka2[Data]<>""),Tabulka2[Data],$U$23),AG58) -> 90.58 | AI58: 2
A59: 93 | C59: =IF(Tabulka2[[#This Row],[Data]]="","",IF(OR(Tabulka2[[#This Row],[Data]]<$G$57,Tabulka2[[#This Row],[Data]]>$G$58),2,IF(OR(Tabulka2[[#This Row],[Data]]<$G$51,Tabulka2[[#This Row],[Data]]>$G$52),1,0))) -> 0 | AB59: 18 | AC59: =SMALL(IF((Tabulka2[Data]<$U$13)*(Tabulka2[Data]<>""),Tabulka2[Data],$U$23),AB59) -> 90.58 | AD59: 2 | AG59: 18 | AH59: =LARGE(IF((Tabulka2[Data]>$U$18)*(Tabulka2[Data]<>""),Tabulka2[Data],$U$23),AG59) -> 90.58 | AI59: 2
A60: 84 | C60: =IF(Tabulka2[[#This Row],[Data]]="","",IF(OR(Tabulka2[[#This Row],[Data]]<$G$57,Tabulka2[[#This Row],[Data]]>$G$58),2,IF(OR(Tabulka2[[#This Row],[Data]]<$G$51,Tabulka2[[#This Row],[Data]]>$G$52),1,0))) -> 0 | F60: Počet extrémních pozorování | G60: =IF(Rozsah=0,"",Rozsah-COUNT(IF((Tabulka2[Data]<>"")*(Tabulka2[Data]>=$G$57)*(Tabulka2[Data]<=$G$58),Tabulka2[Data]))) -> 1 | AB60: 19 | AC60: =SMALL(IF((Tabulka2[Data]<$U$13)*(Tabulka2[Data]<>""),Tabulka2[Data],$U$23),AB60) -> 90.58 | AD60: 2 | AG60: 19 | AH60: =LARGE(IF((Tabulka2[Data]>$U$18)*(Tabulka2[Data]<>""),Tabulka2[Data],$U$23),AG60) -> 90.58 | AI60: 2
A61: 104 | C61: =IF(Tabulka2[[#This Row],[Data]]="","",IF(OR(Tabulka2[[#This Row],[Data]]<$G$57,Tabulka2[[#This Row],[Data]]>$G$58),2,IF(OR(Tabulka2[[#This Row],[Data]]<$G$51,Tabulka2[[#This Row],[Data]]>$G$52),1,0))) -> 0 | AB61: 20 | AC61: =SMALL(IF((Tabulka2[Data]<$U$13)*(Tabulka2[Data]<>""),Tabulka2[Data],$U$23),AB61) -> 90.58 | AD61: 2 | AG61: 20 | AH61: =LARGE(IF((Tabulka2[Data]>$U$18)*(Tabulka2[Data]<>""),Tabulka2[Data],$U$23),AG61) -> 90.58 | AI61: 2
A62: 87 | C62: =IF(Tabulka2[[#This Row],[Data]]="","",IF(OR(Tabulka2[[#This Row],[Data]]<$G$57,Tabulka2[[#This Row],[Data]]>$G$58),2,IF(OR(Tabulka2[[#This Row],[Data]]<$G$51,Tabulka2[[#This Row],[Data]]>$G$52),1,0))) -> 0 | AB62: 21 | AC62: =SMALL(IF((Tabulka2[Data]<$U$13)*(Tabulka2[Data]<>""),Tabulka2[Data],$U$23),AB62) -> 90.58 | AD62: 2 | AG62: 21 | AH62: =LARGE(IF((Tabulka2[Data]>$U$18)*(Tabulka2[Data]<>""),Tabulka2[Data],$U$23),AG62) -> 90.58 | AI62: 2
A63: 82 | C63: =IF(Tabulka2[[#This Row],[Data]]="","",IF(OR(Tabulka2[[#This Row],[Data]]<$G$57,Tabulka2[[#This Row],[Data]]>$G$58),2,IF(OR(Tabulka2[[#This Row],[Data]]<$G$51,Tabulka2[[#This Row],[Data]]>$G$52),1,0))) -> 0 | AB63: 22 | AC63: =SMALL(IF((Tabulka2[Data]<$U$13)*(Tabulka2[Data]<>""),Tabulka2[Data],$U$23),AB63) -> 90.58 | AD63: 2 | AG63: 22 | AH63: =LARGE(IF((Tabulka2[Data]>$U$18)*(Tabulka2[Data]<>""),Tabulka2[Data],$U$23),AG63) -> 90.58 | AI63: 2
A64: 99 | C64: =IF(Tabulka2[[#This Row],[Data]]="","",IF(OR(Tabulka2[[#This Row],[Data]]<$G$57,Tabulka2[[#This Row],[Data]]>$G$58),2,IF(OR(Tabulka2[[#This Row],[Data]]<$G$51,Tabulka2[[#This Row],[Data]]>$G$52),1,0))) -> 0 | AB64: 23 | AC64: =SMALL(IF((Tabulka2[Data]<$U$13)*(Tabulka2[Data]<>""),Tabulka2[Data],$U$23),AB64) -> 90.58 | AD64: 2 | AG64: 23 | AH64: =LARGE(IF((Tabulka2[Data]>$U$18)*(Tabulka2[Data]<>""),Tabulka2[Data],$U$23),AG64) -> 90.58 | AI64: 2
A65: 92 | C65: =IF(Tabulka2[[#This Row],[Data]]="","",IF(OR(Tabulka2[[#This Row],[Data]]<$G$57,Tabulka2[[#This Row],[Data]]>$G$58),2,IF(OR(Tabulka2[[#This Row],[Data]]<$G$51,Tabulka2[[#This Row],[Data]]>$G$52),1,0))) -> 0 | AB65: 24 | AC65: =SMALL(IF((Tabulka2[Data]<$U$13)*(Tabulka2[Data]<>""),Tabulka2[Data],$U$23),AB65) -> 90.58 | AD65: 2 | AG65: 24 | AH65: =LARGE(IF((Tabulka2[Data]>$U$18)*(Tabulka2[Data]<>""),Tabulka2[Data],$U$23),AG65) -> 90.58 | AI65: 2
A66: 92 | C66: =IF(Tabulka2[[#This Row],[Data]]="","",IF(OR(Tabulka2[[#This Row],[Data]]<$G$57,Tabulka2[[#This Row],[Data]]>$G$58),2,IF(OR(Tabulka2[[#This Row],[Data]]<$G$51,Tabulka2[[#This Row],[Data]]>$G$52),1,0))) -> 0 | AB66: 25 | AC66: =SMALL(IF((Tabulka2[Data]<$U$13)*(Tabulka2[Data]<>""),Tabulka2[Data],$U$23),AB66) -> 90.58 | AD66: 2 | AG66: 25 | AH66: =LARGE(IF((Tabulka2[Data]>$U$18)*(Tabulka2[Data]<>""),Tabulka2[Data],$U$23),AG66) -> 90.58 | AI66: 2
A67: 85 | C67: =IF(Tabulka2[[#This Row],[Data]]="","",IF(OR(Tabulka2[[#This Row],[Data]]<$G$57,Tabulka2[[#This Row],[Data]]>$G$58),2,IF(OR(Tabulka2[[#This Row],[Data]]<$G$51,Tabulka2[[#This Row],[Data]]>$G$52),1,0))) -> 0 | AB67: 26 | AC67: =SMALL(IF((Tabulka2[Data]<$U$13)*(Tabulka2[Data]<>""),Tabulka2[Data],$U$23),AB67) -> 90.58 | AD67: 2 | AG67: 26 | AH67: =LARGE(IF((Tabulka2[Data]>$U$18)*(Tabulka2[Data]<>""),Tabulka2[Data],$U$23),AG67) -> 90.58 | AI67: 2
A68: 96 | C68: =IF(Tabulka2[[#This Row],[Data]]="","",IF(OR(Tabulka2[[#This Row],[Data]]<$G$57,Tabulka2[[#This Row],[Data]]>$G$58),2,IF(OR(Tabulka2[[#This Row],[Data]]<$G$51,Tabulka2[[#This Row],[Data]]>$G$52),1,0))) -> 0 | AB68: 27 | AC68: =SMALL(IF((Tabulka2[Data]<$U$13)*(Tabulka2[Data]<>""),Tabulka2[Data],$U$23),AB68) -> 90.58 | AD68: 2 | AG68: 27 | AH68: =LARGE(IF((Tabulka2[Data]>$U$18)*(Tabulka2[Data]<>""),Tabulka2[Data],$U$23),AG68) -> 90.58 | AI68: 2
A69: 84 | C69: =IF(Tabulka2[[#This Row],[Data]]="","",IF(OR(Tabulka2[[#This Row],[Data]]<$G$57,Tabulka2[[#This Row],[Data]]>$G$58),2,IF(OR(Tabulka2[[#This Row],[Data]]<$G$51,Tabulka2[[#This Row],[Data]]>$G$52),1,0))) -> 0 | AB69: 28 | AC69: =SMALL(IF((Tabulka2[Data]<$U$13)*(Tabulka2[Data]<>""),Tabulka2[Data],$U$23),AB69) -> 90.58 | AD69: 2 | AG69: 28 | AH69: =LARGE(IF((Tabulka2[Data]>$U$18)*(Tabulka2[Data]<>""),Tabulka2[Data],$U$23),AG69) -> 90.58 | AI69: 2
A70: 83 | C70: =IF(Tabulka2[[#This Row],[Data]]="","",IF(OR(Tabulka2[[#This Row],[Data]]<$G$57,Tabulka2[[#This Row],[Data]]>$G$58),2,IF(OR(Tabulka2[[#This Row],[Data]]<$G$51,Tabulka2[[#This Row],[Data]]>$G$52),1,0))) -> 0 | AB70: 29 | AC70: =SMALL(IF((Tabulka2[Data]<$U$13)*(Tabulka2[Data]<>""),Tabulka2[Data],$U$23),AB70) -> 90.58 | AD70: 2 | AG70: 29 | AH70: =LARGE(IF((Tabulka2[Data]>$U$18)*(Tabulka2[Data]<>""),Tabulka2[Data],$U$23),AG70) -> 90.58 | AI70: 2
A71: 86 | C71: =IF(Tabulka2[[#This Row],[Data]]="","",IF(OR(Tabulka2[[#This Row],[Data]]<$G$57,Tabulka2[[#This Row],[Data]]>$G$58),2,IF(OR(Tabulka2[[#This Row],[Data]]<$G$51,Tabulka2[[#This Row],[Data]]>$G$52),1,0))) -> 0 | AB71: 30 | AC71: =SMALL(IF((Tabulka2[Data]<$U$13)*(Tabulka2[Data]<>""),Tabulka2[Data],$U$23),AB71) -> 90.58 | AD71: 2 | AG71: 30 | AH71: =LARGE(IF((Tabulka2[Data]>$U$18)*(Tabulka2[Data]<>""),Tabulka2[Data],$U$23),AG71) -> 90.58 | AI71: 2
A72: 101 | C72: =IF(Tabulka2[[#This Row],[Data]]="","",IF(OR(Tabulka2[[#This Row],[Data]]<$G$57,Tabulka2[[#This Row],[Data]]>$G$58),2,IF(OR(Tabulka2[[#This Row],[Data]]<$G$51,Tabulka2[[#This Row],[Data]]>$G$52),1,0))) -> 0
A73: 88 | C73: =IF(Tabulka2[[#This Row],[Data]]="","",IF(OR(Tabulka2[[#This Row],[Data]]<$G$57,Tabulka2[[#This Row],[Data]]>$G$58),2,IF(OR(Tabulka2[[#This Row],[Data]]<$G$51,Tabulka2[[#This Row],[Data]]>$G$52),1,0))) -> 0
A74: 90 | C74: =IF(Tabulka2[[#This Row],[Data]]="","",IF(OR(Tabulka2[[#This Row],[Data]]<$G$57,Tabulka2[[#This Row],[Data]]>$G$58),2,IF(OR(Tabulka2[[#This Row],[Data]]<$G$51,Tabulka2[[#This Row],[Data]]>$G$52),1,0))) -> 0
A75: 86 | C75: =IF(Tabulka2[[#This Row],[Data]]="","",IF(OR(Tabulka2[[#This Row],[Data]]<$G$57,Tabulka2[[#This Row],[Data]]>$G$58),2,IF(OR(Tabulka2[[#This Row],[Data]]<$G$51,Tabulka2[[#This Row],[Data]]>$G$52),1,0))) -> 0
A76: 85 | C76: =IF(Tabulka2[[#This Row],[Data]]="","",IF(OR(Tabulka2[[#This Row],[Data]]<$G$57,Tabulka2[[#This Row],[Data]]>$G$58),2,IF(OR(Tabulka2[[#This Row],[Data]]<$G$51,Tabulka2[[#This Row],[Data]]>$G$52),1,0))) -> 0
A77: 91 | C77: =IF(Tabulka2[[#This Row],[Data]]="","",IF(OR(Tabulka2[[#This Row],[Data]]<$G$57,Tabulka2[[#This Row],[Data]]>$G$58),2,IF(OR(Tabulka2[[#This Row],[Data]]<$G$51,Tabulka2[[#This Row],[Data]]>$G$52),1,0))) -> 0
A78: 93 | C78: =IF(Tabulka2[[#This Row],[Data]]="","",IF(OR(Tabulka2[[#This Row],[Data]]<$G$57,Tabulka2[[#This Row],[Data]]>$G$58),2,IF(OR(Tabulka2[[#This Row],[Data]]<$G$51,Tabulka2[[#This Row],[Data]]>$G$52),1,0))) -> 0
A79: 97 | C79: =IF(Tabulka2[[#This Row],[Data]]="","",IF(OR(Tabulka2[[#This Row],[Data]]<$G$57,Tabulka2[[#This Row],[Data]]>$G$58),2,IF(OR(Tabulka2[[#This Row],[Data]]<$G$51,Tabulka2[[#This Row],[Data]]>$G$52),1,0))) -> 0
A80: 87 | C80: =IF(Tabulka2[[#This Row],[Data]]="","",IF(OR(Tabulka2[[#This Row],[Data]]<$G$57,Tabulka2[[#This Row],[Data]]>$G$58),2,IF(OR(Tabulka2[[#This Row],[Data]]<$G$51,Tabulka2[[#This Row],[Data]]>$G$52),1,0))) -> 0
A81: 77 | C81: =IF(Tabulka2[[#This Row],[Data]]="","",IF(OR(Tabulka2[[#This Row],[Data]]<$G$57,Tabulka2[[#This Row],[Data]]>$G$58),2,IF(OR(Tabulka2[[#This Row],[Data]]<$G$51,Tabulka2[[#This Row],[Data]]>$G$52),1,0))) -> 0
A82: 98 | C82: =IF(Tabulka2[[#This Row],[Data]]="","",IF(OR(Tabulka2[[#This Row],[Data]]<$G$57,Tabulka2[[#This Row],[Data]]>$G$58),2,IF(OR(Tabulka2[[#This Row],[Data]]<$G$51,Tabulka2[[#This Row],[Data]]>$G$52),1,0))) -> 0
A83: 100 | C83: =IF(Tabulka2[[#This Row],[Data]]="","",IF(OR(Tabulka2[[#This Row],[Data]]<$G$57,Tabulka2[[#This Row],[Data]]>$G$58),2,IF(OR(Tabulka2[[#This Row],[Data]]<$G$51,Tabulka2[[#This Row],[Data]]>$G$52),1,0))) -> 0
A84: 90 | C84: =IF(Tabulka2[[#This Row],[Data]]="","",IF(OR(Tabulka2[[#This Row],[Data]]<$G$57,Tabulka2[[#This Row],[Data]]>$G$58),2,IF(OR(Tabulka2[[#This Row],[Data]]<$G$51,Tabulka2[[#This Row],[Data]]>$G$52),1,0))) -> 0
A85: 85 | C85: =IF(Tabulka2[[#This Row],[Data]]="","",IF(OR(Tabulka2[[#This Row],[Data]]<$G$57,Tabulka2[[#This Row],[Data]]>$G$58),2,IF(OR(Tabulka2[[#This Row],[Data]]<$G$51,Tabulka2[[#This Row],[Data]]>$G$52),1,0))) -> 0
A86: 84 | C86: =IF(Tabulka2[[#This Row],[Data]]="","",IF(OR(Tabulka2[[#This Row],[Data]]<$G$57,Tabulka2[[#This Row],[Data]]>$G$58),2,IF(OR(Tabulka2[[#This Row],[Data]]<$G$51,Tabulka2[[#This Row],[Data]]>$G$52),1,0))) -> 0
A87: 88 | C87: =IF(Tabulka2[[#This Row],[Data]]="","",IF(OR(Tabulka2[[#This Row],[Data]]<$G$57,Tabulka2[[#This Row],[Data]]>$G$58),2,IF(OR(Tabulka2[[#This Row],[Data]]<$G$51,Tabulka2[[#This Row],[Data]]>$G$52),1,0))) -> 0
A88: 97 | C88: =IF(Tabulka2[[#This Row],[Data]]="","",IF(OR(Tabulka2[[#This Row],[Data]]<$G$57,Tabulka2[[#This Row],[Data]]>$G$58),2,IF(OR(Tabulka2[[#This Row],[Data]]<$G$51,Tabulka2[[#This Row],[Data]]>$G$52),1,0))) -> 0
A89: 84 | C89: =IF(Tabulka2[[#This Row],[Data]]="","",IF(OR(Tabulka2[[#This Row],[Data]]<$G$57,Tabulka2[[#This Row],[Data]]>$G$58),2,IF(OR(Tabulka2[[#This Row],[Data]]<$G$51,Tabulka2[[#This Row],[Data]]>$G$52),1,0))) -> 0
A90: 103 | C90: =IF(Tabulka2[[#This Row],[Data]]="","",IF(OR(Tabulka2[[#This Row],[Data]]<$G$57,Tabulka2[[#This Row],[Data]]>$G$58),2,IF(OR(Tabulka2[[#This Row],[Data]]<$G$51,Tabulka2[[#This Row],[Data]]>$G$52),1,0))) -> 0
A91: 84 | C91: =IF(Tabulka2[[#This Row],[Data]]="","",IF(OR(Tabulka2[[#This Row],[Data]]<$G$57,Tabulka2[[#This Row],[Data]]>$G$58),2,IF(OR(Tabulka2[[#This Row],[Data]]<$G$51,Tabulka2[[#This Row],[Data]]>$G$52),1,0))) -> 0
A92: 87 | C92: =IF(Tabulka2[[#This Row],[Data]]="","",IF(OR(Tabulka2[[#This Row],[Data]]<$G$57,Tabulka2[[#This Row],[Data]]>$G$58),2,IF(OR(Tabulka2[[#This Row],[Data]]<$G$51,Tabulka2[[#This Row],[Data]]>$G$52),1,0))) -> 0
A93: 78 | C93: =IF(Tabulka2[[#This Row],[Data]]="","",IF(OR(Tabulka2[[#This Row],[Data]]<$G$57,Tabulka2[[#This Row],[Data]]>$G$58),2,IF(OR(Tabulka2[[#This Row],[Data]]<$G$51,Tabulka2[[#This Row],[Data]]>$G$52),1,0))) -> 0
A94: 84 | C94: =IF(Tabulka2[[#This Row],[Data]]="","",IF(OR(Tabulka2[[#This Row],[Data]]<$G$57,Tabulka2[[#This Row],[Data]]>$G$58),2,IF(OR(Tabulka2[[#This Row],[Data]]<$G$51,Tabulka2[[#This Row],[Data]]>$G$52),1,0))) -> 0
A95: 83 | C95: =IF(Tabulka2[[#This Row],[Data]]="","",IF(OR(Tabulka2[[#This Row],[Data]]<$G$57,Tabulka2[[#This Row],[Data]]>$G$58),2,IF(OR(Tabulka2[[#This Row],[Data]]<$G$51,Tabulka2[[#This Row],[Data]]>$G$52),1,0))) -> 0
A96: 99 | C96: =IF(Tabulka2[[#This Row],[Data]]="","",IF(OR(Tabulka2[[#This Row],[Data]]<$G$57,Tabulka2[[#This Row],[Data]]>$G$58),2,IF(OR(Tabulka2[[#This Row],[Data]]<$G$51,Tabulka2[[#This Row],[Data]]>$G$52),1,0))) -> 0
A97: 97 | C97: =IF(Tabulka2[[#This Row],[Data]]="","",IF(OR(Tabulka2[[#This Row],[Data]]<$G$57,Tabulka2[[#This Row],[Data]]>$G$58),2,IF(OR(Tabulka2[[#This Row],[Data]]<$G$51,Tabulka2[[#This Row],[Data]]>$G$52),1,0))) -> 0
A98: 85 | C98: =IF(Tabulka2[[#This Row],[Data]]="","",IF(OR(Tabulka2[[#This Row],[Data]]<$G$57,Tabulka2[[#This Row],[Data]]>$G$58),2,IF(OR(Tabulka2[[#This Row],[Data]]<$G$51,Tabulka2[[#This Row],[Data]]>$G$52),1,0))) -> 0
A99: 91 | C99: =IF(Tabulka2[[#This Row],[Data]]="","",IF(OR(Tabulka2[[#This Row],[Data]]<$G$57,Tabulka2[[#This Row],[Data]]>$G$58),2,IF(OR(Tabulka2[[#This Row],[Data]]<$G$51,Tabulka2[[#This Row],[Data]]>$G$52),1,0))) -> 0
A100: 86 | C100: =IF(Tabulka2[[#This Row],[Data]]="","",IF(OR(Tabulka2[[#This Row],[Data]]<$G$57,Tabulka2[[#This Row],[Data]]>$G$58),2,IF(OR(Tabulka2[[#This Row],[Data]]<$G$51,Tabulka2[[#This Row],[Data]]>$G$52),1,0))) -> 0
A101: 97 | C101: =IF(Tabulka2[[#This Row],[Data]]="","",IF(OR(Tabulka2[[#This Row],[Data]]<$G$57,Tabulka2[[#This Row],[Data]]>$G$58),2,IF(OR(Tabulka2[[#This Row],[Data]]<$G$51,Tabulka2[[#This Row],[Data]]>$G$52),1,0))) -> 0
A102: 106 | C102: =IF(Tabulka2[[#This Row],[Data]]="","",IF(OR(Tabulka2[[#This Row],[Data]]<$G$57,Tabulka2[[#This Row],[Data]]>$G$58),2,IF(OR(Tabulka2[[#This Row],[Data]]<$G$51,Tabulka2[[#This Row],[Data]]>$G$52),1,0))) -> 0
A103: 92 | C103: =IF(Tabulka2[[#This Row],[Data]]="","",IF(OR(Tabulka2[[#This Row],[Data]]<$G$57,Tabulka2[[#This Row],[Data]]>$G$58),2,IF(OR(Tabulka2[[#This Row],[Data]]<$G$51,Tabulka2[[#This Row],[Data]]>$G$52),1,0))) -> 0
A104: 97 | C104: =IF(Tabulka2[[#This Row],[Data]]="","",IF(OR(Tabulka2[[#This Row],[Data]]<$G$57,Tabulka2[[#This Row],[Data]]>$G$58),2,IF(OR(Tabulka2[[#This Row],[Data]]<$G$51,Tabulka2[[#This Row],[Data]]>$G$52),1,0))) -> 0
A105: 86 | C105: =IF(Tabulka2[[#This Row],[Data]]="","",IF(OR(Tabulka2[[#This Row],[Data]]<$G$57,Tabulka2[[#This Row],[Data]]>$G$58),2,IF(OR(Tabulka2[[#This Row],[Data]]<$G$51,Tabulka2[[#This Row],[Data]]>$G$52),1,0))) -> 0
A106: 98 | C106: =IF(Tabulka2[[#This Row],[Data]]="","",IF(OR(Tabulka2[[#This Row],[Data]]<$G$57,Tabulka2[[#This Row],[Data]]>$G$58),2,IF(OR(Tabulka2[[#This Row],[Data]]<$G$51,Tabulka2[[#This Row],[Data]]>$G$52),1,0))) -> 0
A107: 81 | C107: =IF(Tabulka2[[#This Row],[Data]]="","",IF(OR(Tabulka2[[#This Row],[Data]]<$G$57,Tabulka2[[#This Row],[Data]]>$G$58),2,IF(OR(Tabulka2[[#This Row],[Data]]<$G$51,Tabulka2[[#This Row],[Data]]>$G$52),1,0))) -> 0
A108: 100 | C108: =IF(Tabulka2[[#This Row],[Data]]="","",IF(OR(Tabulka2[[#This Row],[Data]]<$G$57,Tabulka2[[#This Row],[Data]]>$G$58),2,IF(OR(Tabulka2[[#This Row],[Data]]<$G$51,Tabulka2[[#This Row],[Data]]>$G$52),1,0))) -> 0
A109: 91 | C109: =IF(Tabulka2[[#This Row],[Data]]="","",IF(OR(Tabulka2[[#This Row],[Data]]<$G$57,Tabulka2[[#This Row],[Data]]>$G$58),2,IF(OR(Tabulka2[[#This Row],[Data]]<$G$51,Tabulka2[[#This Row],[Data]]>$G$52),1,0))) -> 0
A110: 95 | C110: =IF(Tabulka2[[#This Row],[Data]]="","",IF(OR(Tabulka2[[#This Row],[Data]]<$G$57,Tabulka2[[#This Row],[Data]]>$G$58),2,IF(OR(Tabulka2[[#This Row],[Data]]<$G$51,Tabulka2[[#This Row],[Data]]>$G$52),1,0))) -> 0
A111: 91 | C111: =IF(Tabulka2[[#This Row],[Data]]="","",IF(OR(Tabulka2[[#This Row],[Data]]<$G$57,Tabulka2[[#This Row],[Data]]>$G$58),2,IF(OR(Tabulka2[[#This Row],[Data]]<$G$51,Tabulka2[[#This Row],[Data]]>$G$52),1,0))) -> 0
A112: 96 | C112: =IF(Tabulka2[[#This Row],[Data]]="","",IF(OR(Tabulka2[[#This Row],[Data]]<$G$57,Tabulka2[[#This Row],[Data]]>$G$58),2,IF(OR(Tabulka2[[#This Row],[Data]]<$G$51,Tabulka2[[#This Row],[Data]]>$G$52),1,0))) -> 0
A113: 93 | C113: =IF(Tabulka2[[#This Row],[Data]]="","",IF(OR(Tabulka2[[#This Row],[Data]]<$G$57,Tabulka2[[#This Row],[Data]]>$G$58),2,IF(OR(Tabulka2[[#This Row],[Data]]<$G$51,Tabulka2[[#This Row],[Data]]>$G$52),1,0))) -> 0
C114: =IF(Tabulka2[[#This Row],[Data]]="","",IF(OR(Tabulka2[[#This Row],[Data]]<$G$57,Tabulka2[[#This Row],[Data]]>$G$58),2,IF(OR(Tabulka2[[#This Row],[Data]]<$G$51,Tabulka2[[#This Row],[Data]]>$G$52),1,0))) -> 
C115: =IF(Tabulka2[[#This Row],[Data]]="","",IF(OR(Tabulka2[[#This Row],[Data]]<$G$57,Tabulka2[[#This Row],[Data]]>$G$58),2,IF(OR(Tabulka2[[#This Row],[Data]]<$G$51,Tabulka2[[#This Row],[Data]]>$G$52),1,0))) -> 
C116: =IF(Tabulka2[[#This Row],[Data]]="","",IF(OR(Tabulka2[[#This Row],[Data]]<$G$57,Tabulka2[[#This Row],[Data]]>$G$58),2,IF(OR(Tabulka2[[#This Row],[Data]]<$G$51,Tabulka2[[#This Row],[Data]]>$G$52),1,0))) -> 
C117: =IF(Tabulka2[[#This Row],[Data]]="","",IF(OR(Tabulka2[[#This Row],[Data]]<$G$57,Tabulka2[[#This Row],[Data]]>$G$58),2,IF(OR(Tabulka2[[#This Row],[Data]]<$G$51,Tabulka2[[#This Row],[Data]]>$G$52),1,0))) -> 
C118: =IF(Tabulka2[[#This Row],[Data]]="","",IF(OR(Tabulka2[[#This Row],[Data]]<$G$57,Tabulka2[[#This Row],[Data]]>$G$58),2,IF(OR(Tabulka2[[#This Row],[Data]]<$G$51,Tabulka2[[#This Row],[Data]]>$G$52),1,0))) -> 
C119: =IF(Tabulka2[[#This Row],[Data]]="","",IF(OR(Tabulka2[[#This Row],[Data]]<$G$57,Tabulka2[[#This Row],[Data]]>$G$58),2,IF(OR(Tabulka2[[#This Row],[Data]]<$G$51,Tabulka2[[#This Row],[Data]]>$G$52),1,0))) -> 
C120: =IF(Tabulka2[[#This Row],[Data]]="","",IF(OR(Tabulka2[[#This Row],[Data]]<$G$57,Tabulka2[[#This Row],[Data]]>$G$58),2,IF(OR(Tabulka2[[#This Row],[Data]]<$G$51,Tabulka2[[#This Row],[Data]]>$G$52),1,0))) -> 
C121: =IF(Tabulka2[[#This Row],[Data]]="","",IF(OR(Tabulka2[[#This Row],[Data]]<$G$57,Tabulka2[[#This Row],[Data]]>$G$58),2,IF(OR(Tabulka2[[#This Row],[Data]]<$G$51,Tabulka2[[#This Row],[Data]]>$G$52),1,0))) -> 
C122: =IF(Tabulka2[[#This Row],[Data]]="","",IF(OR(Tabulka2[[#This Row],[Data]]<$G$57,Tabulka2[[#This Row],[Data]]>$G$58),2,IF(OR(Tabulka2[[#This Row],[Data]]<$G$51,Tabulka2[[#This Row],[Data]]>$G$52),1,0))) -> 
C123: =IF(Tabulka2[[#This Row],[Data]]="","",IF(OR(Tabulka2[[#This Row],[Data]]<$G$57,Tabulka2[[#This Row],[Data]]>$G$58),2,IF(OR(Tabulka2[[#This Row],[Data]]<$G$51,Tabulka2[[#This Row],[Data]]>$G$52),1,0))) -> 
C124: =IF(Tabulka2[[#This Row],[Data]]="","",IF(OR(Tabulka2[[#This Row],[Data]]<$G$57,Tabulka2[[#This Row],[Data]]>$G$58),2,IF(OR(Tabulka2[[#This Row],[Data]]<$G$51,Tabulka2[[#This Row],[Data]]>$G$52),1,0))) -> 
C125: =IF(Tabulka2[[#This Row],[Data]]="","",IF(OR(Tabulka2[[#This Row],[Data]]<$G$57,Tabulka2[[#This Row],[Data]]>$G$58),2,IF(OR(Tabulka2[[#This Row],[Data]]<$G$51,Tabulka2[[#This Row],[Data]]>$G$52),1,0))) -> 
C126: =IF(Tabulka2[[#This Row],[Data]]="","",IF(OR(Tabulka2[[#This Row],[Data]]<$G$57,Tabulka2[[#This Row],[Data]]>$G$58),2,IF(OR(Tabulka2[[#This Row],[Data]]<$G$51,Tabulka2[[#This Row],[Data]]>$G$52),1,0))) -> 
C127: =IF(Tabulka2[[#This Row],[Data]]="","",IF(OR(Tabulka2[[#This Row],[Data]]<$G$57,Tabulka2[[#This Row],[Data]]>$G$58),2,IF(OR(Tabulka2[[#This Row],[Data]]<$G$51,Tabulka2[[#This Row],[Data]]>$G$52),1,0))) -> 
C128: =IF(Tabulka2[[#This Row],[Data]]="","",IF(OR(Tabulka2[[#This Row],[Data]]<$G$57,Tabulka2[[#This Row],[Data]]>$G$58),2,IF(OR(Tabulka2[[#This Row],[Data]]<$G$51,Tabulka2[[#This Row],[Data]]>$G$52),1,0))) -> 
C129: =IF(Tabulka2[[#This Row],[Data]]="","",IF(OR(Tabulka2[[#This Row],[Data]]<$G$57,Tabulka2[[#This Row],[Data]]>$G$58),2,IF(OR(Tabulka2[[#This Row],[Data]]<$G$51,Tabulka2[[#This Row],[Data]]>$G$52),1,0))) -> 
C130: =IF(Tabulka2[[#This Row],[Data]]="","",IF(OR(Tabulka2[[#This Row],[Data]]<$G$57,Tabulka2[[#This Row],[Data]]>$G$58),2,IF(OR(Tabulka2[[#This Row],[Data]]<$G$51,Tabulka2[[#This Row],[Data]]>$G$52),1,0))) -> 
C131: =IF(Tabulka2[[#This Row],[Data]]="","",IF(OR(Tabulka2[[#This Row],[Data]]<$G$57,Tabulka2[[#This Row],[Data]]>$G$58),2,IF(OR(Tabulka2[[#This Row],[Data]]<$G$51,Tabulka2[[#This Row],[Data]]>$G$52),1,0))) -> 
C132: =IF(Tabulka2[[#This Row],[Data]]="","",IF(OR(Tabulka2[[#This Row],[Data]]<$G$57,Tabulka2[[#This Row],[Data]]>$G$58),2,IF(OR(Tabulka2[[#This Row],[Data]]<$G$51,Tabulka2[[#This Row],[Data]]>$G$52),1,0))) -> 
C133: =IF(Tabulka2[[#This Row],[Data]]="","",IF(OR(Tabulka2[[#This Row],[Data]]<$G$57,Tabulka2[[#This Row],[Data]]>$G$58),2,IF(OR(Tabulka2[[#This Row],[Data]]<$G$51,Tabulka2[[#This Row],[Data]]>$G$52),1,0))) -> 
C134: =IF(Tabulka2[[#This Row],[Data]]="","",IF(OR(Tabulka2[[#This Row],[Data]]<$G$57,Tabulka2[[#This Row],[Data]]>$G$58),2,IF(OR(Tabulka2[[#This Row],[Data]]<$G$51,Tabulka2[[#This Row],[Data]]>$G$52),1,0))) -> 
C135: =IF(Tabulka2[[#This Row],[Data]]="","",IF(OR(Tabulka2[[#This Row],[Data]]<$G$57,Tabulka2[[#This Row],[Data]]>$G$58),2,IF(OR(Tabulka2[[#This Row],[Data]]<$G$51,Tabulka2[[#This Row],[Data]]>$G$52),1,0))) -> 
C136: =IF(Tabulka2[[#This Row],[Data]]="","",IF(OR(Tabulka2[[#This Row],[Data]]<$G$57,Tabulka2[[#This Row],[Data]]>$G$58),2,IF(OR(Tabulka2[[#This Row],[Data]]<$G$51,Tabulka2[[#This Row],[Data]]>$G$52),1,0))) -> 
C137: =IF(Tabulka2[[#This Row],[Data]]="","",IF(OR(Tabulka2[[#This Row],[Data]]<$G$57,Tabulka2[[#This Row],[Data]]>$G$58),2,IF(OR(Tabulka2[[#This Row],[Data]]<$G$51,Tabulka2[[#This Row],[Data]]>$G$52),1,0))) -> 
C138: =IF(Tabulka2[[#This Row],[Data]]="","",IF(OR(Tabulka2[[#This Row],[Data]]<$G$57,Tabulka2[[#This Row],[Data]]>$G$58),2,IF(OR(Tabulka2[[#This Row],[Data]]<$G$51,Tabulka2[[#This Row],[Data]]>$G$52),1,0))) -> 
C139: =IF(Tabulka2[[#This Row],[Data]]="","",IF(OR(Tabulka2[[#This Row],[Data]]<$G$57,Tabulka2[[#This Row],[Data]]>$G$58),2,IF(OR(Tabulka2[[#This Row],[Data]]<$G$51,Tabulka2[[#This Row],[Data]]>$G$52),1,0))) -> 
C140: =IF(Tabulka2[[#This Row],[Data]]="","",IF(OR(Tabulka2[[#This Row],[Data]]<$G$57,Tabulka2[[#This Row],[Data]]>$G$58),2,IF(OR(Tabulka2[[#This Row],[Data]]<$G$51,Tabulka2[[#This Row],[Data]]>$G$52),1,0))) -> 
C141: =IF(Tabulka2[[#This Row],[Data]]="","",IF(OR(Tabulka2[[#This Row],[Data]]<$G$57,Tabulka2[[#This Row],[Data]]>$G$58),2,IF(OR(Tabulka2[[#This Row],[Data]]<$G$51,Tabulka2[[#This Row],[Data]]>$G$52),1,0))) -> 
C142: =IF(Tabulka2[[#This Row],[Data]]="","",IF(OR(Tabulka2[[#This Row],[Data]]<$G$57,Tabulka2[[#This Row],[Data]]>$G$58),2,IF(OR(Tabulka2[[#This Row],[Data]]<$G$51,Tabulka2[[#This Row],[Data]]>$G$52),1,0))) -> 
C143: =IF(Tabulka2[[#This Row],[Data]]="","",IF(OR(Tabulka2[[#This Row],[Data]]<$G$57,Tabulka2[[#This Row],[Data]]>$G$58),2,IF(OR(Tabulka2[[#This Row],[Data]]<$G$51,Tabulka2[[#This Row],[Data]]>$G$52),1,0))) -> 
C144: =IF(Tabulka2[[#This Row],[Data]]="","",IF(OR(Tabulka2[[#This Row],[Data]]<$G$57,Tabulka2[[#This Row],[Data]]>$G$58),2,IF(OR(Tabulka2[[#This Row],[Data]]<$G$51,Tabulka2[[#This Row],[Data]]>$G$52),1,0))) -> 
C145: =IF(Tabulka2[[#This Row],[Data]]="","",IF(OR(Tabulka2[[#This Row],[Data]]<$G$57,Tabulka2[[#This Row],[Data]]>$G$58),2,IF(OR(Tabulka2[[#This Row],[Data]]<$G$51,Tabulka2[[#This Row],[Data]]>$G$52),1,0))) -> 
C146: =IF(Tabulka2[[#This Row],[Data]]="","",IF(OR(Tabulka2[[#This Row],[Data]]<$G$57,Tabulka2[[#This Row],[Data]]>$G$58),2,IF(OR(Tabulka2[[#This Row],[Data]]<$G$51,Tabulka2[[#This Row],[Data]]>$G$52),1,0))) -> 
C147: =IF(Tabulka2[[#This Row],[Data]]="","",IF(OR(Tabulka2[[#This Row],[Data]]<$G$57,Tabulka2[[#This Row],[Data]]>$G$58),2,IF(OR(Tabulka2[[#This Row],[Data]]<$G$51,Tabulka2[[#This Row],[Data]]>$G$52),1,0))) -> 
C148: =IF(Tabulka2[[#This Row],[Data]]="","",IF(OR(Tabulka2[[#This Row],[Data]]<$G$57,Tabulka2[[#This Row],[Data]]>$G$58),2,IF(OR(Tabulka2[[#This Row],[Data]]<$G$51,Tabulka2[[#This Row],[Data]]>$G$52),1,0))) -> 
C149: =IF(Tabulka2[[#This Row],[Data]]="","",IF(OR(Tabulka2[[#This Row],[Data]]<$G$57,Tabulka2[[#This Row],[Data]]>$G$58),2,IF(OR(Tabulka2[[#This Row],[Data]]<$G$51,Tabulka2[[#This Row],[Data]]>$G$52),1,0))) -> 
C150: =IF(Tabulka2[[#This Row],[Data]]="","",IF(OR(Tabulka2[[#This Row],[Data]]<$G$57,Tabulka2[[#This Row],[Data]]>$G$58),2,IF(OR(Tabulka2[[#This Row],[Data]]<$G$51,Tabulka2[[#This Row],[Data]]>$G$52),1,0))) -> 
C151: =IF(Tabulka2[[#This Row],[Data]]="","",IF(OR(Tabulka2[[#This Row],[Data]]<$G$57,Tabulka2[[#This Row],[Data]]>$G$58),2,IF(OR(Tabulka2[[#This Row],[Data]]<$G$51,Tabulka2[[#This Row],[Data]]>$G$52),1,0))) -> 
C152: =IF(Tabulka2[[#This Row],[Data]]="","",IF(OR(Tabulka2[[#This Row],[Data]]<$G$57,Tabulka2[[#This Row],[Data]]>$G$58),2,IF(OR(Tabulka2[[#This Row],[Data]]<$G$51,Tabulka2[[#This Row],[Data]]>$G$52),1,0))) -> 
C153: =IF(Tabulka2[[#This Row],[Data]]="","",IF(OR(Tabulka2[[#This Row],[Data]]<$G$57,Tabulka2[[#This Row],[Data]]>$G$58),2,IF(OR(Tabulka2[[#This Row],[Data]]<$G$51,Tabulka2[[#This Row],[Data]]>$G$52),1,0))) -> 
C154: =IF(Tabulka2[[#This Row],[Data]]="","",IF(OR(Tabulka2[[#This Row],[Data]]<$G$57,Tabulka2[[#This Row],[Data]]>$G$58),2,IF(OR(Tabulka2[[#This Row],[Data]]<$G$51,Tabulka2[[#This Row],[Data]]>$G$52),1,0))) -> 
C155: =IF(Tabulka2[[#This Row],[Data]]="","",IF(OR(Tabulka2[[#This Row],[Data]]<$G$57,Tabulka2[[#This Row],[Data]]>$G$58),2,IF(OR(Tabulka2[[#This Row],[Data]]<$G$51,Tabulka2[[#This Row],[Data]]>$G$52),1,0))) -> 
C156: =IF(Tabulka2[[#This Row],[Data]]="","",IF(OR(Tabulka2[[#This Row],[Data]]<$G$57,Tabulka2[[#This Row],[Data]]>$G$58),2,IF(OR(Tabulka2[[#This Row],[Data]]<$G$51,Tabulka2[[#This Row],[Data]]>$G$52),1,0))) -> 
C157: =IF(Tabulka2[[#This Row],[Data]]="","",IF(OR(Tabulka2[[#This Row],[Data]]<$G$57,Tabulka2[[#This Row],[Data]]>$G$58),2,IF(OR(Tabulka2[[#This Row],[Data]]<$G$51,Tabulka2[[#This Row],[Data]]>$G$52),1,0))) -> 
C158: =IF(Tabulka2[[#This Row],[Data]]="","",IF(OR(Tabulka2[[#This Row],[Data]]<$G$57,Tabulka2[[#This Row],[Data]]>$G$58),2,IF(OR(Tabulka2[[#This Row],[Data]]<$G$51,Tabulka2[[#This Row],[Data]]>$G$52),1,0))) -> 
C159: =IF(Tabulka2[[#This Row],[Data]]="","",IF(OR(Tabulka2[[#This Row],[Data]]<$G$57,Tabulka2[[#This Row],[Data]]>$G$58),2,IF(OR(Tabulka2[[#This Row],[Data]]<$G$51,Tabulka2[[#This Row],[Data]]>$G$52),1,0))) -> 
C160: =IF(Tabulka2[[#This Row],[Data]]="","",IF(OR(Tabulka2[[#This Row],[Data]]<$G$57,Tabulka2[[#This Row],[Data]]>$G$58),2,IF(OR(Tabulka2[[#This Row],[Data]]<$G$51,Tabulka2[[#This Row],[Data]]>$G$52),1,0))) -> 
C161: =IF(Tabulka2[[#This Row],[Data]]="","",IF(OR(Tabulka2[[#This Row],[Data]]<$G$57,Tabulka2[[#This Row],[Data]]>$G$58),2,IF(OR(Tabulka2[[#This Row],[Data]]<$G$51,Tabulka2[[#This Row],[Data]]>$G$52),1,0))) -> 
C162: =IF(Tabulka2[[#This Row],[Data]]="","",IF(OR(Tabulka2[[#This Row],[Data]]<$G$57,Tabulka2[[#This Row],[Data]]>$G$58),2,IF(OR(Tabulka2[[#This Row],[Data]]<$G$51,Tabulka2[[#This Row],[Data]]>$G$52),1,0))) -> 
C163: =IF(Tabulka2[[#This Row],[Data]]="","",IF(OR(Tabulka2[[#This Row],[Data]]<$G$57,Tabulka2[[#This Row],[Data]]>$G$58),2,IF(OR(Tabulka2[[#This Row],[Data]]<$G$51,Tabulka2[[#This Row],[Data]]>$G$52),1,0))) -> 
C164: =IF(Tabulka2[[#This Row],[Data]]="","",IF(OR(Tabulka2[[#This Row],[Data]]<$G$57,Tabulka2[[#This Row],[Data]]>$G$58),2,IF(OR(Tabulka2[[#This Row],[Data]]<$G$51,Tabulka2[[#This Row],[Data]]>$G$52),1,0))) -> 
C165: =IF(Tabulka2[[#This Row],[Data]]="","",IF(OR(Tabulka2[[#This Row],[Data]]<$G$57,Tabulka2[[#This Row],[Data]]>$G$58),2,IF(OR(Tabulka2[[#This Row],[Data]]<$G$51,Tabulka2[[#This Row],[Data]]>$G$52),1,0))) -> 
C166: =IF(Tabulka2[[#This Row],[Data]]="","",IF(OR(Tabulka2[[#This Row],[Data]]<$G$57,Tabulka2[[#This Row],[Data]]>$G$58),2,IF(OR(Tabulka2[[#This Row],[Data]]<$G$51,Tabulka2[[#This Row],[Data]]>$G$52),1,0))) -> 
C167: =IF(Tabulka2[[#This Row],[Data]]="","",IF(OR(Tabulka2[[#This Row],[Data]]<$G$57,Tabulka2[[#This Row],[Data]]>$G$58),2,IF(OR(Tabulka2[[#This Row],[Data]]<$G$51,Tabulka2[[#This Row],[Data]]>$G$52),1,0))) -> 
C168: =IF(Tabulka2[[#This Row],[Data]]="","",IF(OR(Tabulka2[[#This Row],[Data]]<$G$57,Tabulka2[[#This Row],[Data]]>$G$58),2,IF(OR(Tabulka2[[#This Row],[Data]]<$G$51,Tabulka2[[#This Row],[Data]]>$G$52),1,0))) ->  | D168: =IF(Tabulka2[[#This Row],[OL]]="","",IF(Tabulka2[[#This Row],[OL]]>0,A168,"")) -> 
C169: =IF(Tabulka2[[#This Row],[Data]]="","",IF(OR(Tabulka2[[#This Row],[Data]]<$G$57,Tabulka2[[#This Row],[Data]]>$G$58),2,IF(OR(Tabulka2[[#This Row],[Data]]<$G$51,Tabulka2[[#This Row],[Data]]>$G$52),1,0))) ->  | D169: =IF(Tabulka2[[#This Row],[OL]]="","",IF(Tabulka2[[#This Row],[OL]]>0,A169,"")) -> 
C170: =IF(Tabulka2[[#This Row],[Data]]="","",IF(OR(Tabulka2[[#This Row],[Data]]<$G$57,Tabulka2[[#This Row],[Data]]>$G$58),2,IF(OR(Tabulka2[[#This Row],[Data]]<$G$51,Tabulka2[[#This Row],[Data]]>$G$52),1,0))) ->  | D170: =IF(Tabulka2[[#This Row],[OL]]="","",IF(Tabulka2[[#This Row],[OL]]>0,A170,"")) -> 
C171: =IF(Tabulka2[[#This Row],[Data]]="","",IF(OR(Tabulka2[[#This Row],[Data]]<$G$57,Tabulka2[[#This Row],[Data]]>$G$58),2,IF(OR(Tabulka2[[#This Row],[Data]]<$G$51,Tabulka2[[#This Row],[Data]]>$G$52),1,0))) ->  | D171: =IF(Tabulka2[[#This Row],[OL]]="","",IF(Tabulka2[[#This Row],[OL]]>0,A171,"")) -> 
C172: =IF(Tabulka2[[#This Row],[Data]]="","",IF(OR(Tabulka2[[#This Row],[Data]]<$G$57,Tabulka2[[#This Row],[Data]]>$G$58),2,IF(OR(Tabulka2[[#This Row],[Data]]<$G$51,Tabulka2[[#This Row],[Data]]>$G$52),1,0))) ->  | D172: =IF(Tabulka2[[#This Row],[OL]]="","",IF(Tabulka2[[#This Row],[OL]]>0,A172,"")) -> 
C173: =IF(Tabulka2[[#This Row],[Data]]="","",IF(OR(Tabulka2[[#This Row],[Data]]<$G$57,Tabulka2[[#This Row],[Data]]>$G$58),2,IF(OR(Tabulka2[[#This Row],[Data]]<$G$51,Tabulka2[[#This Row],[Data]]>$G$52),1,0))) ->  | D173: =IF(Tabulka2[[#This Row],[OL]]="","",IF(Tabulka2[[#This Row],[OL]]>0,A173,"")) -> 
C174: =IF(Tabulka2[[#This Row],[Data]]="","",IF(OR(Tabulka2[[#This Row],[Data]]<$G$57,Tabulka2[[#This Row],[Data]]>$G$58),2,IF(OR(Tabulka2[[#This Row],[Data]]<$G$51,Tabulka2[[#This Row],[Data]]>$G$52),1,0))) ->  | D174: =IF(Tabulka2[[#This Row],[OL]]="","",IF(Tabulka2[[#This Row],[OL]]>0,A174,"")) -> 
C175: =IF(Tabulka2[[#This Row],[Data]]="","",IF(OR(Tabulka2[[#This Row],[Data]]<$G$57,Tabulka2[[#This Row],[Data]]>$G$58),2,IF(OR(Tabulka2[[#This Row],[Data]]<$G$51,Tabulka2[[#This Row],[Data]]>$G$52),1,0))) ->  | D175: =IF(Tabulka2[[#This Row],[OL]]="","",IF(Tabulka2[[#This Row],[OL]]>0,A175,"")) -> 
C176: =IF(Tabulka2[[#This Row],[Data]]="","",IF(OR(Tabulka2[[#This Row],[Data]]<$G$57,Tabulka2[[#This Row],[Data]]>$G$58),2,IF(OR(Tabulka2[[#This Row],[Data]]<$G$51,Tabulka2[[#This Row],[Data]]>$G$52),1,0))) ->  | D176: =IF(Tabulka2[[#This Row],[OL]]="","",IF(Tabulka2[[#This Row],[OL]]>0,A176,"")) -> 
C177: =IF(Tabulka2[[#This Row],[Data]]="","",IF(OR(Tabulka2[[#This Row],[Data]]<$G$57,Tabulka2[[#This Row],[Data]]>$G$58),2,IF(OR(Tabulka2[[#This Row],[Data]]<$G$51,Tabulka2[[#This Row],[Data]]>$G$52),1,0))) ->  | D177: =IF(Tabulka2[[#This Row],[OL]]="","",IF(Tabulka2[[#This Row],[OL]]>0,A177,"")) -> 
C178: =IF(Tabulka2[[#This Row],[Data]]="","",IF(OR(Tabulka2[[#This Row],[Data]]<$G$57,Tabulka2[[#This Row],[Data]]>$G$58),2,IF(OR(Tabulka2[[#This Row],[Data]]<$G$51,Tabulka2[[#This Row],[Data]]>$G$52),1,0))) ->  | D178: =IF(Tabulka2[[#This Row],[OL]]="","",IF(Tabulka2[[#This Row],[OL]]>0,A178,"")) -> 
C179: =IF(Tabulka2[[#This Row],[Data]]="","",IF(OR(Tabulka2[[#This Row],[Data]]<$G$57,Tabulka2[[#This Row],[Data]]>$G$58),2,IF(OR(Tabulka2[[#This Row],[Data]]<$G$51,Tabulka2[[#This Row],[Data]]>$G$52),1,0))) ->  | D179: =IF(Tabulka2[[#This Row],[OL]]="","",IF(Tabulka2[[#This Row],[OL]]>0,A179,"")) -> 
C180: =IF(Tabulka2[[#This Row],[Data]]="","",IF(OR(Tabulka2[[#This Row],[Data]]<$G$57,Tabulka2[[#This Row],[Data]]>$G$58),2,IF(OR(Tabulka2[[#This Row],[Data]]<$G$51,Tabulka2[[#This Row],[Data]]>$G$52),1,0))) ->  | D180: =IF(Tabulka2[[#This Row],[OL]]="","",IF(Tabulka2[[#This Row],[OL]]>0,A180,"")) -> 
C181: =IF(Tabulka2[[#This Row],[Data]]="","",IF(OR(Tabulka2[[#This Row],[Data]]<$G$57,Tabulka2[[#This Row],[Data]]>$G$58),2,IF(OR(Tabulka2[[#This Row],[Data]]<$G$51,Tabulka2[[#This Row],[Data]]>$G$52),1,0))) ->  | D181: =IF(Tabulka2[[#This Row],[OL]]="","",IF(Tabulka2[[#This Row],[OL]]>0,A181,"")) -> 
C182: =IF(Tabulka2[[#This Row],[Data]]="","",IF(OR(Tabulka2[[#This Row],[Data]]<$G$57,Tabulka2[[#This Row],[Data]]>$G$58),2,IF(OR(Tabulka2[[#This Row],[Data]]<$G$51,Tabulka2[[#This Row],[Data]]>$G$52),1,0))) ->  | D182: =IF(Tabulka2[[#This Row],[OL]]="","",IF(Tabulka2[[#This Row],[OL]]>0,A182,"")) -> 
C183: =IF(Tabulka2[[#This Row],[Data]]="","",IF(OR(Tabulka2[[#This Row],[Data]]<$G$57,Tabulka2[[#This Row],[Data]]>$G$58),2,IF(OR(Tabulka2[[#This Row],[Data]]<$G$51,Tabulka2[[#This Row],[Data]]>$G$52),1,0))) ->  | D183: =IF(Tabulka2[[#This Row],[OL]]="","",IF(Tabulka2[[#This Row],[OL]]>0,A183,"")) -> 
C184: =IF(Tabulka2[[#This Row],[Data]]="","",IF(OR(Tabulka2[[#This Row],[Data]]<$G$57,Tabulka2[[#This Row],[Data]]>$G$58),2,IF(OR(Tabulka2[[#This Row],[Data]]<$G$51,Tabulka2[[#This Row],[Data]]>$G$52),1,0))) ->  | D184: =IF(Tabulka2[[#This Row],[OL]]="","",IF(Tabulka2[[#This Row],[OL]]>0,A184,"")) -> 
C185: =IF(Tabulka2[[#This Row],[Data]]="","",IF(OR(Tabulka2[[#This Row],[Data]]<$G$57,Tabulka2[[#This Row],[Data]]>$G$58),2,IF(OR(Tabulka2[[#This Row],[Data]]<$G$51,Tabulka2[[#This Row],[Data]]>$G$52),1,0))) ->  | D185: =IF(Tabulka2[[#This Row],[OL]]="","",IF(Tabulka2[[#This Row],[OL]]>0,A185,"")) -> 
C186: =IF(Tabulka2[[#This Row],[Data]]="","",IF(OR(Tabulka2[[#This Row],[Data]]<$G$57,Tabulka2[[#This Row],[Data]]>$G$58),2,IF(OR(Tabulka2[[#This Row],[Data]]<$G$51,Tabulka2[[#This Row],[Data]]>$G$52),1,0))) ->  | D186: =IF(Tabulka2[[#This Row],[OL]]="","",IF(Tabulka2[[#This Row],[OL]]>0,A186,"")) -> 
C187: =IF(Tabulka2[[#This Row],[Data]]="","",IF(OR(Tabulka2[[#This Row],[Data]]<$G$57,Tabulka2[[#This Row],[Data]]>$G$58),2,IF(OR(Tabulka2[[#This Row],[Data]]<$G$51,Tabulka2[[#This Row],[Data]]>$G$52),1,0))) ->  | D187: =IF(Tabulka2[[#This Row],[OL]]="","",IF(Tabulka2[[#This Row],[OL]]>0,A187,"")) -> 
C188: =IF(Tabulka2[[#This Row],[Data]]="","",IF(OR(Tabulka2[[#This Row],[Data]]<$G$57,Tabulka2[[#This Row],[Data]]>$G$58),2,IF(OR(Tabulka2[[#This Row],[Data]]<$G$51,Tabulka2[[#This Row],[Data]]>$G$52),1,0))) ->  | D188: =IF(Tabulka2[[#This Row],[OL]]="","",IF(Tabulka2[[#This Row],[OL]]>0,A188,"")) -> 
C189: =IF(Tabulka2[[#This Row],[Data]]="","",IF(OR(Tabulka2[[#This Row],[Data]]<$G$57,Tabulka2[[#This Row],[Data]]>$G$58),2,IF(OR(Tabulka2[[#This Row],[Data]]<$G$51,Tabulka2[[#This Row],[Data]]>$G$52),1,0))) ->  | D189: =IF(Tabulka2[[#This Row],[OL]]="","",IF(Tabulka2[[#This Row],[OL]]>0,A189,"")) -> 
C190: =IF(Tabulka2[[#This Row],[Data]]="","",IF(OR(Tabulka2[[#This Row],[Data]]<$G$57,Tabulka2[[#This Row],[Data]]>$G$58),2,IF(OR(Tabulka2[[#This Row],[Data]]<$G$51,Tabulka2[[#This Row],[Data]]>$G$52),1,0))) ->  | D190: =IF(Tabulka2[[#This Row],[OL]]="","",IF(Tabulka2[[#This Row],[OL]]>0,A190,"")) -> 
C191: =IF(Tabulka2[[#This Row],[Data]]="","",IF(OR(Tabulka2[[#This Row],[Data]]<$G$57,Tabulka2[[#This Row],[Data]]>$G$58),2,IF(OR(Tabulka2[[#This Row],[Data]]<$G$51,Tabulka2[[#This Row],[Data]]>$G$52),1,0))) ->  | D191: =IF(Tabulka2[[#This Row],[OL]]="","",IF(Tabulka2[[#This Row],[OL]]>0,A191,"")) -> 
C192: =IF(Tabulka2[[#This Row],[Data]]="","",IF(OR(Tabulka2[[#This Row],[Data]]<$G$57,Tabulka2[[#This Row],[Data]]>$G$58),2,IF(OR(Tabulka2[[#This Row],[Data]]<$G$51,Tabulka2[[#This Row],[Data]]>$G$52),1,0))) ->  | D192: =IF(Tabulka2[[#This Row],[OL]]="","",IF(Tabulka2[[#This Row],[OL]]>0,A192,"")) -> 
C193: =IF(Tabulka2[[#This Row],[Data]]="","",IF(OR(Tabulka2[[#This Row],[Data]]<$G$57,Tabulka2[[#This Row],[Data]]>$G$58),2,IF(OR(Tabulka2[[#This Row],[Data]]<$G$51,Tabulka2[[#This Row],[Data]]>$G$52),1,0))) ->  | D193: =IF(Tabulka2[[#This Row],[OL]]="","",IF(Tabulka2[[#This Row],[OL]]>0,A193,"")) -> 
C194: =IF(Tabulka2[[#This Row],[Data]]="","",IF(OR(Tabulka2[[#This Row],[Data]]<$G$57,Tabulka2[[#This Row],[Data]]>$G$58),2,IF(OR(Tabulka2[[#This Row],[Data]]<$G$51,Tabulka2[[#This Row],[Data]]>$G$52),1,0))) ->  | D194: =IF(Tabulka2[[#This Row],[OL]]="","",IF(Tabulka2[[#This Row],[OL]]>0,A194,"")) -> 
C195: =IF(Tabulka2[[#This Row],[Data]]="","",IF(OR(Tabulka2[[#This Row],[Data]]<$G$57,Tabulka2[[#This Row],[Data]]>$G$58),2,IF(OR(Tabulka2[[#This Row],[Data]]<$G$51,Tabulka2[[#This Row],[Data]]>$G$52),1,0))) ->  | D195: =IF(Tabulka2[[#This Row],[OL]]="","",IF(Tabulka2[[#This Row],[OL]]>0,A195,"")) -> 
C196: =IF(Tabulka2[[#This Row],[Data]]="","",IF(OR(Tabulka2[[#This Row],[Data]]<$G$57,Tabulka2[[#This Row],[Data]]>$G$58),2,IF(OR(Tabulka2[[#This Row],[Data]]<$G$51,Tabulka2[[#This Row],[Data]]>$G$52),1,0))) ->  | D196: =IF(Tabulka2[[#This Row],[OL]]="","",IF(Tabulka2[[#This Row],[OL]]>0,A196,"")) -> 
C197: =IF(Tabulka2[[#This Row],[Data]]="","",IF(OR(Tabulka2[[#This Row],[Data]]<$G$57,Tabulka2[[#This Row],[Data]]>$G$58),2,IF(OR(Tabulka2[[#This Row],[Data]]<$G$51,Tabulka2[[#This Row],[Data]]>$G$52),1,0))) ->  | D197: =IF(Tabulka2[[#This Row],[OL]]="","",IF(Tabulka2[[#This Row],[OL]]>0,A197,"")) -> 
C198: =IF(Tabulka2[[#This Row],[Data]]="","",IF(OR(Tabulka2[[#This Row],[Data]]<$G$57,Tabulka2[[#This Row],[Data]]>$G$58),2,IF(OR(Tabulka2[[#This Row],[Data]]<$G$51,Tabulka2[[#This Row],[Data]]>$G$52),1,0))) ->  | D198: =IF(Tabulka2[[#This Row],[OL]]="","",IF(Tabulka2[[#This Row],[OL]]>0,A198,"")) -> 
C199: =IF(Tabulka2[[#This Row],[Data]]="","",IF(OR(Tabulka2[[#This Row],[Data]]<$G$57,Tabulka2[[#This Row],[Data]]>$G$58),2,IF(OR(Tabulka2[[#This Row],[Data]]<$G$51,Tabulka2[[#This Row],[Data]]>$G$52),1,0))) ->  | D199: =IF(Tabulka2[[#This Row],[OL]]="","",IF(Tabulka2[[#This Row],[OL]]>0,A199,"")) -> 
C200: =IF(Tabulka2[[#This Row],[Data]]="","",IF(OR(Tabulka2[[#This Row],[Data]]<$G$57,Tabulka2[[#This Row],[Data]]>$G$58),2,IF(OR(Tabulka2[[#This Row],[Data]]<$G$51,Tabulka2[[#This Row],[Data]]>$G$52),1,0))) ->  | D200: =IF(Tabulka2[[#This Row],[OL]]="","",IF(Tabulka2[[#This Row],[OL]]>0,A200,"")) -> 
C201: =IF(Tabulka2[[#This Row],[Data]]="","",IF(OR(Tabulka2[[#This Row],[Data]]<$G$57,Tabulka2[[#This Row],[Data]]>$G$58),2,IF(OR(Tabulka2[[#This Row],[Data]]<$G$51,Tabulka2[[#This Row],[Data]]>$G$52),1,0))) ->  | D201: =IF(Tabulka2[[#This Row],[OL]]="","",IF(Tabulka2[[#This Row],[OL]]>0,A201,"")) -> 
C202: =IF(Tabulka2[[#This Row],[Data]]="","",IF(OR(Tabulka2[[#This Row],[Data]]<$G$57,Tabulka2[[#This Row],[Data]]>$G$58),2,IF(OR(Tabulka2[[#This Row],[Data]]<$G$51,Tabulka2[[#This Row],[Data]]>$G$52),1,0))) ->  | D202: =IF(Tabulka2[[#This Row],[OL]]="","",IF(Tabulka2[[#This Row],[OL]]>0,A202,"")) -> 
... 1535 more rows

Sheet Histogram numerické proměnné
A1: Histogram numerické proměnné | L1: © Martina Litschmannová 2011
A2: Popis:
A3: Tento applet zpracovává data z listu Numerická proměnná. Umožňuje vytvořit histogram pro numerická data. Dělení do intervalu (max. 20) lze provést buď automaticky nastavením počtu kategorií na posuvníku nebo uživatelsky. Uživatelské nastavení se provádí zadáním horních mezí jednotlivých intervalů do světle modrých polí E14 - E33.
A6: =CONCATENATE("Počet kategorií histogramu: ",C7) -> Počet kategorií histogramu: 20 | D6: Šířka intervalu: | E6: =(MAX(Tabulka6[Data])-MIN(Tabulka6[Data]))/C7 -> 3.05 | M6: =87/5 -> 17.4
A7: 1 | B7: 20 | C7: 20 | E7: 20 | F7: Doporučený počet kategorií: | J7: =IF(Rozsah=0,"",ROUND(IF(M7>100,10*LOG10(M7),IF(M7>40,2*SQRT(M7),1+1.4426*LN(M7))),0)) -> 20 | L7: n | M7: =Rozsah -> 100
A9: ¥
A10: Data | C10: Mezní hodnoty intervalů (uživatelsky) | E10: Popis kategorií | F10: Interval | G10: Četnost | H10: Četnost
A11: =IF('Numerická proměnná'!A14="","",'Numerická proměnná'!A14) -> 91 | C11: 10 | F11: =IF(C11="","",CONCATENATE("<",FLOOR(MIN(Tabulka6[Data]),1),"; ",C11,">")) -> <45; 10> | G11: =FREQUENCY(A11:A1734,C11:C30) -> 0 | H11: =IF(AND(Rozsah<>0,C10<>"",20-COUNTIF($C$11:$C$30,"")+12>ROW()),G11,"") -> 0
A12: =IF('Numerická proměnná'!A15="","",'Numerická proměnná'!A15) -> 95 | C12: 50 | F12: =IF(AND(C11="",C12=""),"",IF(C11>MAX(Tabulka6[Data]),"Dolní mez překročila maximum!",IF(C12="",CONCATENATE("(",C11,"; ",CEILING(MAX(Tabulka6[Data]),1),">"),CONCATENATE("(",C11,"; ",C12,">")))) -> (10; 50> | G12: 1 | H12: 1
A13: =IF('Numerická proměnná'!A16="","",'Numerická proměnná'!A16) -> 94 | F13: =IF(AND(C12="",C13=""),"",IF(C12>MAX(Tabulka6[Data]),"Dolní mez překročila maximum!",IF(C13="",CONCATENATE("(",C12,"; ",CEILING(MAX(Tabulka6[Data]),1),">"),CONCATENATE("(",C12,"; ",C13,">")))) -> (50; 106> | G13: 99 | H13: 99
A14: =IF('Numerická proměnná'!A17="","",'Numerická proměnná'!A17) -> 45 | F14: =IF(AND(C13="",C14=""),"",IF(C13>MAX(Tabulka6[Data]),"Dolní mez překročila maximum!",IF(C14="",CONCATENATE("(",C13,"; ",CEILING(MAX(Tabulka6[Data]),1),">"),CONCATENATE("(",C13,"; ",C14,">")))) -> 
A15: =IF('Numerická proměnná'!A18="","",'Numerická proměnná'!A18) -> 97 | F15: =IF(AND(C14="",C15=""),"",IF(C14>MAX(Tabulka6[Data]),"Dolní mez překročila maximum!",IF(C15="",CONCATENATE("(",C14,"; ",CEILING(MAX(Tabulka6[Data]),1),">"),CONCATENATE("(",C14,"; ",C15,">")))) -> 
A16: =IF('Numerická proměnná'!A19="","",'Numerická proměnná'!A19) -> 91 | F16: =IF(AND(C15="",C16=""),"",IF(C15>MAX(Tabulka6[Data]),"Dolní mez překročila maximum!",IF(C16="",CONCATENATE("(",C15,"; ",CEILING(MAX(Tabulka6[Data]),1),">"),CONCATENATE("(",C15,"; ",C16,">")))) -> 
A17: =IF('Numerická proměnná'!A20="","",'Numerická proměnná'!A20) -> 79 | F17: =IF(AND(C16="",C17=""),"",IF(C16>MAX(Tabulka6[Data]),"Dolní mez překročila maximum!",IF(C17="",CONCATENATE("(",C16,"; ",CEILING(MAX(Tabulka6[Data]),1),">"),CONCATENATE("(",C16,"; ",C17,">")))) -> 
A18: =IF('Numerická proměnná'!A21="","",'Numerická proměnná'!A21) -> 100 | F18: =IF(AND(C17="",C18=""),"",IF(C17>MAX(Tabulka6[Data]),"Dolní mez překročila maximum!",IF(C18="",CONCATENATE("(",C17,"; ",CEILING(MAX(Tabulka6[Data]),1),">"),CONCATENATE("(",C17,"; ",C18,">")))) -> 
A19: =IF('Numerická proměnná'!A22="","",'Numerická proměnná'!A22) -> 81 | F19: =IF(AND(C18="",C19=""),"",IF(C18>MAX(Tabulka6[Data]),"Dolní mez překročila maximum!",IF(C19="",CONCATENATE("(",C18,"; ",CEILING(MAX(Tabulka6[Data]),1),">"),CONCATENATE("(",C18,"; ",C19,">")))) -> 
A20: =IF('Numerická proměnná'!A23="","",'Numerická proměnná'!A23) -> 89 | F20: =IF(AND(C19="",C20=""),"",IF(C19>MAX(Tabulka6[Data]),"Dolní mez překročila maximum!",IF(C20="",CONCATENATE("(",C19,"; ",CEILING(MAX(Tabulka6[Data]),1),">"),CONCATENATE("(",C19,"; ",C20,">")))) -> 
A21: =IF('Numerická proměnná'!A24="","",'Numerická proměnná'!A24) -> 92 | F21: =IF(AND(C20="",C21=""),"",IF(C20>MAX(Tabulka6[Data]),"Dolní mez překročila maximum!",IF(C21="",CONCATENATE("(",C20,"; ",CEILING(MAX(Tabulka6[Data]),1),">"),CONCATENATE("(",C20,"; ",C21,">")))) -> 
A22: =IF('Numerická proměnná'!A25="","",'Numerická proměnná'!A25) -> 82 | F22: =IF(AND(C21="",C22=""),"",IF(C21>MAX(Tabulka6[Data]),"Dolní mez překročila maximum!",IF(C22="",CONCATENATE("(",C21,"; ",CEILING(MAX(Tabulka6[Data]),1),">"),CONCATENATE("(",C21,"; ",C22,">")))) -> 
A23: =IF('Numerická proměnná'!A26="","",'Numerická proměnná'!A26) -> 100 | F23: =IF(AND(C22="",C23=""),"",IF(C22>MAX(Tabulka6[Data]),"Dolní mez překročila maximum!",IF(C23="",CONCATENATE("(",C22,"; ",CEILING(MAX(Tabulka6[Data]),1),">"),CONCATENATE("(",C22,"; ",C23,">")))) -> 
A24: =IF('Numerická proměnná'!A27="","",'Numerická proměnná'!A27) -> 87 | F24: =IF(AND(C23="",C24=""),"",IF(C23>MAX(Tabulka6[Data]),"Dolní mez překročila maximum!",IF(C24="",CONCATENATE("(",C23,"; ",CEILING(MAX(Tabulka6[Data]),1),">"),CONCATENATE("(",C23,"; ",C24,">")))) -> 
A25: =IF('Numerická proměnná'!A28="","",'Numerická proměnná'!A28) -> 92 | F25: =IF(AND(C24="",C25=""),"",IF(C24>MAX(Tabulka6[Data]),"Dolní mez překročila maximum!",IF(C25="",CONCATENATE("(",C24,"; ",CEILING(MAX(Tabulka6[Data]),1),">"),CONCATENATE("(",C24,"; ",C25,">")))) -> 
A26: =IF('Numerická proměnná'!A29="","",'Numerická proměnná'!A29) -> 94 | F26: =IF(AND(C25="",C26=""),"",IF(C25>MAX(Tabulka6[Data]),"Dolní mez překročila maximum!",IF(C26="",CONCATENATE("(",C25,"; ",CEILING(MAX(Tabulka6[Data]),1),">"),CONCATENATE("(",C25,"; ",C26,">")))) -> 
A27: =IF('Numerická proměnná'!A30="","",'Numerická proměnná'!A30) -> 86 | F27: =IF(AND(C26="",C27=""),"",IF(C26>MAX(Tabulka6[Data]),"Dolní mez překročila maximum!",IF(C27="",CONCATENATE("(",C26,"; ",CEILING(MAX(Tabulka6[Data]),1),">"),CONCATENATE("(",C26,"; ",C27,">")))) -> 
A28: =IF('Numerická proměnná'!A31="","",'Numerická proměnná'!A31) -> 98 | F28: =IF(AND(C27="",C28=""),"",IF(C27>MAX(Tabulka6[Data]),"Dolní mez překročila maximum!",IF(C28="",CONCATENATE("(",C27,"; ",CEILING(MAX(Tabulka6[Data]),1),">"),CONCATENATE("(",C27,"; ",C28,">")))) -> 
A29: =IF('Numerická proměnná'!A32="","",'Numerická proměnná'!A32) -> 104 | F29: =IF(AND(C28="",C29=""),"",IF(C28>MAX(Tabulka6[Data]),"Dolní mez překročila maximum!",IF(C29="",CONCATENATE("(",C28,"; ",CEILING(MAX(Tabulka6[Data]),1),">"),CONCATENATE("(",C28,"; ",C29,">")))) -> 
A30: =IF('Numerická proměnná'!A33="","",'Numerická proměnná'!A33) -> 88 | F30: =IF(AND(C29="",C30=""),"",IF(C29>MAX(Tabulka6[Data]),"Dolní mez překročila maximum!",IF(C30="",CONCATENATE("(",C29,"; ",CEILING(MAX(Tabulka6[Data]),1),">"),CONCATENATE("(",C29,"; ",C30,">")))) -> 
A31: =IF('Numerická proměnná'!A34="","",'Numerická proměnná'!A34) -> 97 | F31: =IF(AND(C30="",C31=""),"",IF(C30>MAX(Tabulka6[Data]),"Dolní mez překročila maximum!",IF(C31="",CONCATENATE("(",C30,"; ",CEILING(MAX(Tabulka6[Data]),1),">"),CONCATENATE("(",C30,"; ",C31,">")))) -> 
A32: =IF('Numerická proměnná'!A35="","",'Numerická proměnná'!A35) -> 81
A33: =IF('Numerická proměnná'!A36="","",'Numerická proměnná'!A36) -> 92 | C33: Mezní hodnoty intervalů | E33: Popis kategorií | F33: Interval | G33: Četnost | H33: Četnost
A34: =IF('Numerická proměnná'!A37="","",'Numerická proměnná'!A37) -> 88 | B34: 1 | C34: =IF(AND(ROW()<=$C$7+33,Rozsah<>0),ROUND(MIN(Tabulka6[Data])+B34*$E$6,1),"") -> 48.1 | F34: =IF(C34="","",CONCATENATE("<",FLOOR(MIN(Tabulka6[Data]),0.1),"; ",C34,">")) -> <45; 48,1> | G34: =FREQUENCY(Tabulka6[Data],C34:C53) -> 1 | H34: =IF(AND(Rozsah<>0,20-COUNTIF($C$34:$C$53,"")+35>ROW()),G34,"") -> 1
A35: =IF('Numerická proměnná'!A38="","",'Numerická proměnná'!A38) -> 94 | B35: 2 | C35: =IF(AND(ROW()<$C$7+33,Rozsah<>0),ROUND(MIN(Tabulka6[Data])+B35*$E$6,1),"") -> 51.1 | F35: =IF(AND(C34="",C35=""),"",IF($C$7 =1,"",IF(C34>MAX(Tabulka6[Data]),"Dolní mez překročila maximum!",IF(C35="",CONCATENATE("(",C34,"; ",CEILING(MAX(Tabulka6[Data]),0.1),">"),CONCATENATE("(",C34,"; ",C35,">"))))) -> (48,1; 51,1> | G35: 0 | H35: =IF($C$7=1,"",IF(AND(Rozsah<>0,20-COUNTIF($C$34:$C$53,"")+35>ROW()),G35,"")) -> 0
A36: =IF('Numerická proměnná'!A39="","",'Numerická proměnná'!A39) -> 101 | B36: 3 | C36: =IF(AND(ROW()<$C$7+33,Rozsah<>0),ROUND(MIN(Tabulka6[Data])+B36*$E$6,1),"") -> 54.2 | F36: =IF(AND(C35="",C36=""),"",IF($C$7 =1,"",IF(C35>MAX(Tabulka6[Data]),"Dolní mez překročila maximum!",IF(C36="",CONCATENATE("(",C35,"; ",CEILING(MAX(Tabulka6[Data]),0.1),">"),CONCATENATE("(",C35,"; ",C36,">"))))) -> (51,1; 54,2> | G36: 0 | H36: 0
A37: =IF('Numerická proměnná'!A40="","",'Numerická proměnná'!A40) -> 91 | B37: 4 | C37: =IF(AND(ROW()<$C$7+33,Rozsah<>0),ROUND(MIN(Tabulka6[Data])+B37*$E$6,1),"") -> 57.2 | F37: =IF(AND(C36="",C37=""),"",IF($C$7 =1,"",IF(C36>MAX(Tabulka6[Data]),"Dolní mez překročila maximum!",IF(C37="",CONCATENATE("(",C36,"; ",CEILING(MAX(Tabulka6[Data]),0.1),">"),CONCATENATE("(",C36,"; ",C37,">"))))) -> (54,2; 57,2> | G37: 0 | H37: 0
A38: =IF('Numerická proměnná'!A41="","",'Numerická proměnná'!A41) -> 91 | B38: 5 | C38: =IF(AND(ROW()<$C$7+33,Rozsah<>0),ROUND(MIN(Tabulka6[Data])+B38*$E$6,1),"") -> 60.3 | F38: =IF(AND(C37="",C38=""),"",IF($C$7 =1,"",IF(C37>MAX(Tabulka6[Data]),"Dolní mez překročila maximum!",IF(C38="",CONCATENATE("(",C37,"; ",CEILING(MAX(Tabulka6[Data]),0.1),">"),CONCATENATE("(",C37,"; ",C38,">"))))) -> (57,2; 60,3> | G38: 0 | H38: 0
A39: =IF('Numerická proměnná'!A42="","",'Numerická proměnná'!A42) -> 93 | B39: 6 | C39: =IF(AND(ROW()<$C$7+33,Rozsah<>0),ROUND(MIN(Tabulka6[Data])+B39*$E$6,1),"") -> 63.3 | F39: =IF(AND(C38="",C39=""),"",IF($C$7 =1,"",IF(C38>MAX(Tabulka6[Data]),"Dolní mez překročila maximum!",IF(C39="",CONCATENATE("(",C38,"; ",CEILING(MAX(Tabulka6[Data]),0.1),">"),CONCATENATE("(",C38,"; ",C39,">"))))) -> (60,3; 63,3> | G39: 0 | H39: 0
A40: =IF('Numerická proměnná'!A43="","",'Numerická proměnná'!A43) -> 89 | B40: 7 | C40: =IF(AND(ROW()<$C$7+33,Rozsah<>0),ROUND(MIN(Tabulka6[Data])+B40*$E$6,1),"") -> 66.4 | F40: =IF(AND(C39="",C40=""),"",IF($C$7 =1,"",IF(C39>MAX(Tabulka6[Data]),"Dolní mez překročila maximum!",IF(C40="",CONCATENATE("(",C39,"; ",CEILING(MAX(Tabulka6[Data]),0.1),">"),CONCATENATE("(",C39,"; ",C40,">"))))) -> (63,3; 66,4> | G40: 0 | H40: 0
A41: =IF('Numerická proměnná'!A44="","",'Numerická proměnná'!A44) -> 87 | B41: 8 | C41: =IF(AND(ROW()<$C$7+33,Rozsah<>0),ROUND(MIN(Tabulka6[Data])+B41*$E$6,1),"") -> 69.4 | F41: =IF(AND(C40="",C41=""),"",IF($C$7 =1,"",IF(C40>MAX(Tabulka6[Data]),"Dolní mez překročila maximum!",IF(C41="",CONCATENATE("(",C40,"; ",CEILING(MAX(Tabulka6[Data]),0.1),">"),CONCATENATE("(",C40,"; ",C41,">"))))) -> (66,4; 69,4> | G41: 0 | H41: 0
A42: =IF('Numerická proměnná'!A45="","",'Numerická proměnná'!A45) -> 85 | B42: 9 | C42: =IF(AND(ROW()<$C$7+33,Rozsah<>0),ROUND(MIN(Tabulka6[Data])+B42*$E$6,1),"") -> 72.5 | F42: =IF(AND(C41="",C42=""),"",IF($C$7 =1,"",IF(C41>MAX(Tabulka6[Data]),"Dolní mez překročila maximum!",IF(C42="",CONCATENATE("(",C41,"; ",CEILING(MAX(Tabulka6[Data]),0.1),">"),CONCATENATE("(",C41,"; ",C42,">"))))) -> (69,4; 72,5> | G42: 0 | H42: 0
A43: =IF('Numerická proměnná'!A46="","",'Numerická proměnná'!A46) -> 87 | B43: 10 | C43: =IF(AND(ROW()<$C$7+33,Rozsah<>0),ROUND(MIN(Tabulka6[Data])+B43*$E$6,1),"") -> 75.5 | F43: =IF(AND(C42="",C43=""),"",IF($C$7 =1,"",IF(C42>MAX(Tabulka6[Data]),"Dolní mez překročila maximum!",IF(C43="",CONCATENATE("(",C42,"; ",CEILING(MAX(Tabulka6[Data]),0.1),">"),CONCATENATE("(",C42,"; ",C43,">"))))) -> (72,5; 75,5> | G43: 0 | H43: 0
A44: =IF('Numerická proměnná'!A47="","",'Numerická proměnná'!A47) -> 95 | B44: 11 | C44: =IF(AND(ROW()<$C$7+33,Rozsah<>0),ROUND(MIN(Tabulka6[Data])+B44*$E$6,1),"") -> 78.6 | F44: =IF(AND(C43="",C44=""),"",IF($C$7 =1,"",IF(C43>MAX(Tabulka6[Data]),"Dolní mez překročila maximum!",IF(C44="",CONCATENATE("(",C43,"; ",CEILING(MAX(Tabulka6[Data]),0.1),">"),CONCATENATE("(",C43,"; ",C44,">"))))) -> (75,5; 78,6> | G44: 2 | H44: 2
A45: =IF('Numerická proměnná'!A48="","",'Numerická proměnná'!A48) -> 84 | B45: 12 | C45: =IF(AND(ROW()<$C$7+33,Rozsah<>0),ROUND(MIN(Tabulka6[Data])+B45*$E$6,1),"") -> 81.6 | F45: =IF(AND(C44="",C45=""),"",IF($C$7 =1,"",IF(C44>MAX(Tabulka6[Data]),"Dolní mez překročila maximum!",IF(C45="",CONCATENATE("(",C44,"; ",CEILING(MAX(Tabulka6[Data]),0.1),">"),CONCATENATE("(",C44,"; ",C45,">"))))) -> (78,6; 81,6> | G45: 4 | H45: 4
A46: =IF('Numerická proměnná'!A49="","",'Numerická proměnná'!A49) -> 91 | B46: 13 | C46: =IF(AND(ROW()<$C$7+33,Rozsah<>0),ROUND(MIN(Tabulka6[Data])+B46*$E$6,1),"") -> 84.7 | F46: =IF(AND(C45="",C46=""),"",IF($C$7 =1,"",IF(C45>MAX(Tabulka6[Data]),"Dolní mez překročila maximum!",IF(C46="",CONCATENATE("(",C45,"; ",CEILING(MAX(Tabulka6[Data]),0.1),">"),CONCATENATE("(",C45,"; ",C46,">"))))) -> (81,6; 84,7> | G46: 11 | H46: 11
A47: =IF('Numerická proměnná'!A50="","",'Numerická proměnná'!A50) -> 98 | B47: 14 | C47: =IF(AND(ROW()<$C$7+33,Rozsah<>0),ROUND(MIN(Tabulka6[Data])+B47*$E$6,1),"") -> 87.7 | F47: =IF(AND(C46="",C47=""),"",IF($C$7 =1,"",IF(C46>MAX(Tabulka6[Data]),"Dolní mez překročila maximum!",IF(C47="",CONCATENATE("(",C46,"; ",CEILING(MAX(Tabulka6[Data]),0.1),">"),CONCATENATE("(",C46,"; ",C47,">"))))) -> (84,7; 87,7> | G47: 18 | H47: 18
A48: =IF('Numerická proměnná'!A51="","",'Numerická proměnná'!A51) -> 97 | B48: 15 | C48: =IF(AND(ROW()<$C$7+33,Rozsah<>0),ROUND(MIN(Tabulka6[Data])+B48*$E$6,1),"") -> 90.8 | F48: =IF(AND(C47="",C48=""),"",IF($C$7 =1,"",IF(C47>MAX(Tabulka6[Data]),"Dolní mez překročila maximum!",IF(C48="",CONCATENATE("(",C47,"; ",CEILING(MAX(Tabulka6[Data]),0.1),">"),CONCATENATE("(",C47,"; ",C48,">"))))) -> (87,7; 90,8> | G48: 9 | H48: 9
A49: =IF('Numerická proměnná'!A52="","",'Numerická proměnná'!A52) -> 85 | B49: 16 | C49: =IF(AND(ROW()<$C$7+33,Rozsah<>0),ROUND(MIN(Tabulka6[Data])+B49*$E$6,1),"") -> 93.8 | F49: =IF(AND(C48="",C49=""),"",IF($C$7 =1,"",IF(C48>MAX(Tabulka6[Data]),"Dolní mez překročila maximum!",IF(C49="",CONCATENATE("(",C48,"; ",CEILING(MAX(Tabulka6[Data]),0.1),">"),CONCATENATE("(",C48,"; ",C49,">"))))) -> (90,8; 93,8> | G49: 20 | H49: 20
A50: =IF('Numerická proměnná'!A53="","",'Numerická proměnná'!A53) -> 90 | B50: 17 | C50: =IF(AND(ROW()<$C$7+33,Rozsah<>0),ROUND(MIN(Tabulka6[Data])+B50*$E$6,1),"") -> 96.9 | F50: =IF(AND(C49="",C50=""),"",IF($C$7 =1,"",IF(C49>MAX(Tabulka6[Data]),"Dolní mez překročila maximum!",IF(C50="",CONCATENATE("(",C49,"; ",CEILING(MAX(Tabulka6[Data]),0.1),">"),CONCATENATE("(",C49,"; ",C50,">"))))) -> (93,8; 96,9> | G50: 10 | H50: 10
A51: =IF('Numerická proměnná'!A54="","",'Numerická proměnná'!A54) -> 91 | B51: 18 | C51: =IF(AND(ROW()<$C$7+33,Rozsah<>0),ROUND(MIN(Tabulka6[Data])+B51*$E$6,1),"") -> 99.9 | F51: =IF(AND(C50="",C51=""),"",IF($C$7 =1,"",IF(C50>MAX(Tabulka6[Data]),"Dolní mez překročila maximum!",IF(C51="",CONCATENATE("(",C50,"; ",CEILING(MAX(Tabulka6[Data]),0.1),">"),CONCATENATE("(",C50,"; ",C51,">"))))) -> (96,9; 99,9> | G51: 14 | H51: 14
A52: =IF('Numerická proměnná'!A55="","",'Numerická proměnná'!A55) -> 95 | B52: 19 | C52: =IF(AND(ROW()<$C$7+33,Rozsah<>0),ROUND(MIN(Tabulka6[Data])+B52*$E$6,1),"") -> 103 | F52: =IF(AND(C51="",C52=""),"",IF($C$7 =1,"",IF(C51>MAX(Tabulka6[Data]),"Dolní mez překročila maximum!",IF(C52="",CONCATENATE("(",C51,"; ",CEILING(MAX(Tabulka6[Data]),0.1),">"),CONCATENATE("(",C51,"; ",C52,">"))))) -> (99,9; 103> | G52: 8 | H52: 8
A53: =IF('Numerická proměnná'!A56="","",'Numerická proměnná'!A56) -> 101 | B53: 20 | C53: =IF(AND(ROW()<$C$7+33,Rozsah<>0),ROUND(MIN(Tabulka6[Data])+B53*$E$6,1),"") ->  | F53: =IF(AND(C52="",C53=""),"",IF($C$7 =1,"",IF(C52>MAX(Tabulka6[Data]),"Dolní mez překročila maximum!",IF(C53="",CONCATENATE("(",C52,"; ",CEILING(MAX(Tabulka6[Data]),0.1),">"),CONCATENATE("(",C52,"; ",C53,">"))))) -> (103; 106> | G53: 3 | H53: 3
A54: =IF('Numerická proměnná'!A57="","",'Numerická proměnná'!A57) -> 96 | F54: =IF(AND(C53="",C54=""),"",IF($C$7 =1,"",IF(C53>MAX(Tabulka6[Data]),"Dolní mez překročila maximum!",IF(C54="",CONCATENATE("(",C53,"; ",CEILING(MAX(Tabulka6[Data]),0.1),">"),CONCATENATE("(",C53,"; ",C54,">"))))) -> 
A55: =IF('Numerická proměnná'!A58="","",'Numerická proměnná'!A58) -> 86
A56: =IF('Numerická proměnná'!A59="","",'Numerická proměnná'!A59) -> 93
A57: =IF('Numerická proměnná'!A60="","",'Numerická proměnná'!A60) -> 84
A58: =IF('Numerická proměnná'!A61="","",'Numerická proměnná'!A61) -> 104
A59: =IF('Numerická proměnná'!A62="","",'Numerická proměnná'!A62) -> 87
A60: =IF('Numerická proměnná'!A63="","",'Numerická proměnná'!A63) -> 82
A61: =IF('Numerická proměnná'!A64="","",'Numerická proměnná'!A64) -> 99
A62: =IF('Numerická proměnná'!A65="","",'Numerická proměnná'!A65) -> 92
A63: =IF('Numerická proměnná'!A66="","",'Numerická proměnná'!A66) -> 92
A64: =IF('Numerická proměnná'!A67="","",'Numerická proměnná'!A67) -> 85
A65: =IF('Numerická proměnná'!A68="","",'Numerická proměnná'!A68) -> 96
A66: =IF('Numerická proměnná'!A69="","",'Numerická proměnná'!A69) -> 84
A67: =IF('Numerická proměnná'!A70="","",'Numerická proměnná'!A70) -> 83
A68: =IF('Numerická proměnná'!A71="","",'Numerická proměnná'!A71) -> 86
A69: =IF('Numerická proměnná'!A72="","",'Numerická proměnná'!A72) -> 101
A70: =IF('Numerická proměnná'!A73="","",'Numerická proměnná'!A73) -> 88
A71: =IF('Numerická proměnná'!A74="","",'Numerická proměnná'!A74) -> 90
A72: =IF('Numerická proměnná'!A75="","",'Numerická proměnná'!A75) -> 86
A73: =IF('Numerická proměnná'!A76="","",'Numerická proměnná'!A76) -> 85
A74: =IF('Numerická proměnná'!A77="","",'Numerická proměnná'!A77) -> 91
A75: =IF('Numerická proměnná'!A78="","",'Numerická proměnná'!A78) -> 93
A76: =IF('Numerická proměnná'!A79="","",'Numerická proměnná'!A79) -> 97
A77: =IF('Numerická proměnná'!A80="","",'Numerická proměnná'!A80) -> 87
A78: =IF('Numerická proměnná'!A81="","",'Numerická proměnná'!A81) -> 77
A79: =IF('Numerická proměnná'!A82="","",'Numerická proměnná'!A82) -> 98
A80: =IF('Numerická proměnná'!A83="","",'Numerická proměnná'!A83) -> 100
A81: =IF('Numerická proměnná'!A84="","",'Numerická proměnná'!A84) -> 90
A82: =IF('Numerická proměnná'!A85="","",'Numerická proměnná'!A85) -> 85
A83: =IF('Numerická proměnná'!A86="","",'Numerická proměnná'!A86) -> 84
A84: =IF('Numerická proměnná'!A87="","",'Numerická proměnná'!A87) -> 88
A85: =IF('Numerická proměnná'!A88="","",'Numerická proměnná'!A88) -> 97
A86: =IF('Numerická proměnná'!A89="","",'Numerická proměnná'!A89) -> 84
A87: =IF('Numerická proměnná'!A90="","",'Numerická proměnná'!A90) -> 103
A88: =IF('Numerická proměnná'!A91="","",'Numerická proměnná'!A91) -> 84
A89: =IF('Numerická proměnná'!A92="","",'Numerická proměnná'!A92) -> 87
A90: =IF('Numerická proměnná'!A93="","",'Numerická proměnná'!A93) -> 78
A91: =IF('Numerická proměnná'!A94="","",'Numerická proměnná'!A94) -> 84
A92: =IF('Numerická proměnná'!A95="","",'Numerická proměnná'!A95) -> 83
A93: =IF('Numerická proměnná'!A96="","",'Numerická proměnná'!A96) -> 99
A94: =IF('Numerická proměnná'!A97="","",'Numerická proměnná'!A97) -> 97
A95: =IF('Numerická proměnná'!A98="","",'Numerická proměnná'!A98) -> 85
A96: =IF('Numerická proměnná'!A99="","",'Numerická proměnná'!A99) -> 91
A97: =IF('Numerická proměnná'!A100="","",'Numerická proměnná'!A100) -> 86
A98: =IF('Numerická proměnná'!A101="","",'Numerická proměnná'!A101) -> 97
A99: =IF('Numerická proměnná'!A102="","",'Numerická proměnná'!A102) -> 106
A100: =IF('Numerická proměnná'!A103="","",'Numerická proměnná'!A103) -> 92
A101: =IF('Numerická proměnná'!A104="","",'Numerická proměnná'!A104) -> 97
A102: =IF('Numerická proměnná'!A105="","",'Numerická proměnná'!A105) -> 86
A103: =IF('Numerická proměnná'!A106="","",'Numerická proměnná'!A106) -> 98
A104: =IF('Numerická proměnná'!A107="","",'Numerická proměnná'!A107) -> 81
A105: =IF('Numerická proměnná'!A108="","",'Numerická proměnná'!A108) -> 100
A106: =IF('Numerická proměnná'!A109="","",'Numerická proměnná'!A109) -> 91
A107: =IF('Numerická proměnná'!A110="","",'Numerická proměnná'!A110) -> 95
A108: =IF('Numerická proměnná'!A111="","",'Numerická proměnná'!A111) -> 91
A109: =IF('Numerická proměnná'!A112="","",'Numerická proměnná'!A112) -> 96
A110: =IF('Numerická proměnná'!A113="","",'Numerická proměnná'!A113) -> 93
A111: =IF('Numerická proměnná'!A114="","",'Numerická proměnná'!A114) -> 
A112: =IF('Numerická proměnná'!A115="","",'Numerická proměnná'!A115) -> 
A113: =IF('Numerická proměnná'!A116="","",'Numerická proměnná'!A116) -> 
A114: =IF('Numerická proměnná'!A117="","",'Numerická proměnná'!A117) -> 
A115: =IF('Numerická proměnná'!A118="","",'Numerická proměnná'!A118) -> 
A116: =IF('Numerická proměnná'!A119="","",'Numerická proměnná'!A119) -> 
A117: =IF('Numerická proměnná'!A120="","",'Numerická proměnná'!A120) -> 
A118: =IF('Numerická proměnná'!A121="","",'Numerická proměnná'!A121) -> 
A119: =IF('Numerická proměnná'!A122="","",'Numerická proměnná'!A122) -> 
A120: =IF('Numerická proměnná'!A123="","",'Numerická proměnná'!A123) -> 
A121: =IF('Numerická proměnná'!A124="","",'Numerická proměnná'!A124) -> 
A122: =IF('Numerická proměnná'!A125="","",'Numerická proměnná'!A125) -> 
A123: =IF('Numerická proměnná'!A126="","",'Numerická proměnná'!A126) -> 
A124: =IF('Numerická proměnná'!A127="","",'Numerická proměnná'!A127) -> 
A125: =IF('Numerická proměnná'!A128="","",'Numerická proměnná'!A128) -> 
A126: =IF('Numerická proměnná'!A129="","",'Numerická proměnná'!A129) -> 
A127: =IF('Numerická proměnná'!A130="","",'Numerická proměnná'!A130) -> 
A128: =IF('Numerická proměnná'!A131="","",'Numerická proměnná'!A131) -> 
A129: =IF('Numerická proměnná'!A132="","",'Numerická proměnná'!A132) -> 
A130: =IF('Numerická proměnná'!A133="","",'Numerická proměnná'!A133) -> 
A131: =IF('Numerická proměnná'!A134="","",'Numerická proměnná'!A134) -> 
A132: =IF('Numerická proměnná'!A135="","",'Numerická proměnná'!A135) -> 
A133: =IF('Numerická proměnná'!A136="","",'Numerická proměnná'!A136) -> 
A134: =IF('Numerická proměnná'!A137="","",'Numerická proměnná'!A137) -> 
A135: =IF('Numerická proměnná'!A138="","",'Numerická proměnná'!A138) -> 
A136: =IF('Numerická proměnná'!A139="","",'Numerická proměnná'!A139) -> 
A137: =IF('Numerická proměnná'!A140="","",'Numerická proměnná'!A140) -> 
A138: =IF('Numerická proměnná'!A141="","",'Numerická proměnná'!A141) -> 
A139: =IF('Numerická proměnná'!A142="","",'Numerická proměnná'!A142) -> 
A140: =IF('Numerická proměnná'!A143="","",'Numerická proměnná'!A143) -> 
A141: =IF('Numerická proměnná'!A144="","",'Numerická proměnná'!A144) -> 
A142: =IF('Numerická proměnná'!A145="","",'Numerická proměnná'!A145) -> 
A143: =IF('Numerická proměnná'!A146="","",'Numerická proměnná'!A146) -> 
A144: =IF('Numerická proměnná'!A147="","",'Numerická proměnná'!A147) -> 
A145: =IF('Numerická proměnná'!A148="","",'Numerická proměnná'!A148) -> 
A146: =IF('Numerická proměnná'!A149="","",'Numerická proměnná'!A149) -> 
A147: =IF('Numerická proměnná'!A150="","",'Numerická proměnná'!A150) -> 
A148: =IF('Numerická proměnná'!A151="","",'Numerická proměnná'!A151) -> 
A149: =IF('Numerická proměnná'!A152="","",'Numerická proměnná'!A152) -> 
A150: =IF('Numerická proměnná'!A153="","",'Numerická proměnná'!A153) -> 
A151: =IF('Numerická proměnná'!A154="","",'Numerická proměnná'!A154) -> 
A152: =IF('Numerická proměnná'!A155="","",'Numerická proměnná'!A155) -> 
A153: =IF('Numerická proměnná'!A156="","",'Numerická proměnná'!A156) -> 
A154: =IF('Numerická proměnná'!A157="","",'Numerická proměnná'!A157) -> 
A155: =IF('Numerická proměnná'!A158="","",'Numerická proměnná'!A158) -> 
A156: =IF('Numerická proměnná'!A159="","",'Numerická proměnná'!A159) -> 
A157: =IF('Numerická proměnná'!A160="","",'Numerická proměnná'!A160) -> 
A158: =IF('Numerická proměnná'!A161="","",'Numerická proměnná'!A161) -> 
A159: =IF('Numerická proměnná'!A162="","",'Numerická proměnná'!A162) -> 
A160: =IF('Numerická proměnná'!A163="","",'Numerická proměnná'!A163) -> 
A161: =IF('Numerická proměnná'!A164="","",'Numerická proměnná'!A164) -> 
A162: =IF('Numerická proměnná'!A165="","",'Numerická proměnná'!A165) -> 
A163: =IF('Numerická proměnná'!A166="","",'Numerická proměnná'!A166) -> 
A164: =IF('Numerická proměnná'!A167="","",'Numerická proměnná'!A167) -> 
A165: =IF('Numerická proměnná'!A168="","",'Numerická proměnná'!A168) -> 
A166: =IF('Numerická proměnná'!A169="","",'Numerická proměnná'!A169) -> 
A167: =IF('Numerická proměnná'!A170="","",'Numerická proměnná'!A170) -> 
A168: =IF('Numerická proměnná'!A171="","",'Numerická proměnná'!A171) -> 
A169: =IF('Numerická proměnná'!A172="","",'Numerická proměnná'!A172) -> 
A170: =IF('Numerická proměnná'!A173="","",'Numerická proměnná'!A173) -> 
A171: =IF('Numerická proměnná'!A174="","",'Numerická proměnná'!A174) -> 
A172: =IF('Numerická proměnná'!A175="","",'Numerická proměnná'!A175) -> 
A173: =IF('Numerická proměnná'!A176="","",'Numerická proměnná'!A176) -> 
A174: =IF('Numerická proměnná'!A177="","",'Numerická proměnná'!A177) -> 
A175: =IF('Numerická proměnná'!A178="","",'Numerická proměnná'!A178) -> 
A176: =IF('Numerická proměnná'!A179="","",'Numerická proměnná'!A179) -> 
A177: =IF('Numerická proměnná'!A180="","",'Numerická proměnná'!A180) -> 
A178: =IF('Numerická proměnná'!A181="","",'Numerická proměnná'!A181) -> 
A179: =IF('Numerická proměnná'!A182="","",'Numerická proměnná'!A182) -> 
A180: =IF('Numerická proměnná'!A183="","",'Numerická proměnná'!A183) -> 
A181: =IF('Numerická proměnná'!A184="","",'Numerická proměnná'!A184) -> 
A182: =IF('Numerická proměnná'!A185="","",'Numerická proměnná'!A185) -> 
A183: =IF('Numerická proměnná'!A186="","",'Numerická proměnná'!A186) -> 
A184: =IF('Numerická proměnná'!A187="","",'Numerická proměnná'!A187) -> 
A185: =IF('Numerická proměnná'!A188="","",'Numerická proměnná'!A188) -> 
A186: =IF('Numerická proměnná'!A189="","",'Numerická proměnná'!A189) -> 
A187: =IF('Numerická proměnná'!A190="","",'Numerická proměnná'!A190) -> 
A188: =IF('Numerická proměnná'!A191="","",'Numerická proměnná'!A191) -> 
A189: =IF('Numerická proměnná'!A192="","",'Numerická proměnná'!A192) -> 
A190: =IF('Numerická proměnná'!A193="","",'Numerická proměnná'!A193) -> 
A191: =IF('Numerická proměnná'!A194="","",'Numerická proměnná'!A194) -> 
A192: =IF('Numerická proměnná'!A195="","",'Numerická proměnná'!A195) -> 
A193: =IF('Numerická proměnná'!A196="","",'Numerická proměnná'!A196) -> 
A194: =IF('Numerická proměnná'!A197="","",'Numerická proměnná'!A197) -> 
A195: =IF('Numerická proměnná'!A198="","",'Numerická proměnná'!A198) -> 
A196: =IF('Numerická proměnná'!A199="","",'Numerická proměnná'!A199) -> 
A197: =IF('Numerická proměnná'!A200="","",'Numerická proměnná'!A200) -> 
A198: =IF('Numerická proměnná'!A201="","",'Numerická proměnná'!A201) -> 
A199: =IF('Numerická proměnná'!A202="","",'Numerická proměnná'!A202) -> 
A200: =IF('Numerická proměnná'!A203="","",'Numerická proměnná'!A203) -> 
A201: =IF('Numerická proměnná'!A204="","",'Numerická proměnná'!A204) -> 
A202: =IF('Numerická proměnná'!A205="","",'Numerická proměnná'!A205) -> 
A203: =IF('Numerická proměnná'!A206="","",'Numerická proměnná'!A206) -> 
... 1531 more rows

Sheet Kategoriální proměnná
A1: Číselné charakteristiky kategoriální proměnné, histogram a výsečový graf | L1: © Martina Litschmannová 2011
A2: Popis:
A3: 1. Stiskem tlačítka RESET vymažte původní data.
A4: 2. Zadejte nová data.
A5: 3. V poli D11 zadejte název proměnné.
A6: 4. Stiskněte tlačitko TABULKA ČETNOSTÍ.
A7: 5. V poli A11 zvolte typ proměnné (nominální nebo ordinální).
A8: 6. Je-li proměnná ordinální, zadejte v modrých polích sloupce C pořadí jednotlivých kategorií (od nejnižší po nejvyšší) a stiskněte tlačítko SEŘADIT.
A10: Typ kategoriální proměnné | D10: Název proměnné
A11: nominální | J11: n | K11: =COUNTA(Tabulka5[Data]) -> 5
A13: Data | D13: Tabulka četnostÍ
A14: VÝBORNĚ | C14: Pořadí kategorie | D14: Kategorie | E14: Četnost | F14: Relativní četnost | G14: Kumulativní četnost | H14: Kum. rel. četnost
A15: VÝBORNĚ | D15: DOBŘE | E15: =IF(D15="","",COUNTIF(Tabulka5[Data],D15)) -> 2 | F15: =IF(OR($K$11=0,D15=""),"",IF(D16="",1-H14,ROUND(E15/SUM($E$15:$E$6350),3))) -> 0.4 | G15: =IF(OR(D15="",$A$11="nominální"),"",E15) ->  | H15: =IF(OR($K$11=0,D15="",$A$11="nominální"),"",F15) ->  | I15: =F15 -> 0.4
A16: VÝBORNĚ | D16: VÝBORNĚ | E16: =IF(D16="","",COUNTIF(Tabulka5[Data],D16)) -> 3 | F16: =IF(OR($K$11=0,D16=""),"",IF(D17="",1-I15,ROUND(E16/SUM($E$15:$E$6350),3))) -> 0.6 | G16: =IF(OR(D16="",$A$11="nominální"),"",G15+E16) ->  | H16: =IF(OR($K$11=0,D16="",$A$11="nominální"),"",H15+F16) ->  | I16: =IF(OR($K$11=0,D16=""),"",I15+F16) -> 1
A17: DOBŘE | E17: =IF(D17="","",COUNTIF(Tabulka5[Data],D17)) ->  | F17: =IF(OR($K$11=0,D17=""),"",IF(D18="",1-I16,ROUND(E17/SUM($E$15:$E$6350),3))) ->  | G17: =IF(OR(D17="",$A$11="nominální"),"",G16+E17) ->  | H17: =IF(OR($K$11=0,D17="",$A$11="nominální"),"",H16+F17) ->  | I17: =IF(OR($K$11=0,D17=""),"",I16+F17) -> 
A18: DOBŘE | E18: =IF(D18="","",COUNTIF(Tabulka5[Data],D18)) -> 
E19: =IF(D19="","",COUNTIF(Tabulka5[Data],D19)) -> 
E20: =IF(D20="","",COUNTIF(Tabulka5[Data],D20)) -> 
E21: =IF(D21="","",COUNTIF(Tabulka5[Data],D21)) -> 
E22: =IF(D22="","",COUNTIF(Tabulka5[Data],D22)) -> 
E23: =IF(D23="","",COUNTIF(Tabulka5[Data],D23)) -> 
E24: =IF(D24="","",COUNTIF(Tabulka5[Data],D24)) -> 
E25: =IF(D25="","",COUNTIF(Tabulka5[Data],D25)) -> 
E26: =IF(D26="","",COUNTIF(Tabulka5[Data],D26)) -> 
E27: =IF(D27="","",COUNTIF(Tabulka5[Data],D27)) -> 
E28: =IF(D28="","",COUNTIF(Tabulka5[Data],D28)) -> 
E29: =IF(D29="","",COUNTIF(Tabulka5[Data],D29)) -> 
E30: =IF(D30="","",COUNTIF(Tabulka5[Data],D30)) -> 
E31: =IF(D31="","",COUNTIF(Tabulka5[Data],D31)) -> 
E32: =IF(D32="","",COUNTIF(Tabulka5[Data],D32)) -> 
E33: =IF(D33="","",COUNTIF(Tabulka5[Data],D33)) -> 
E34: =IF(D34="","",COUNTIF(Tabulka5[Data],D34)) -> 
E35: =IF(D35="","",COUNTIF(Tabulka5[Data],D35)) -> 
E36: =IF(D36="","",COUNTIF(Tabulka5[Data],D36)) -> 
E37: =IF(D37="","",COUNTIF(Tabulka5[Data],D37)) -> 
E38: =IF(D38="","",COUNTIF(Tabulka5[Data],D38)) -> 
E39: =IF(D39="","",COUNTIF(Tabulka5[Data],D39)) -> 
E40: =IF(D40="","",COUNTIF(Tabulka5[Data],D40)) -> 
E41: =IF(D41="","",COUNTIF(Tabulka5[Data],D41)) -> 
E42: =IF(D42="","",COUNTIF(Tabulka5[Data],D42)) -> 
E43: =IF(D43="","",COUNTIF(Tabulka5[Data],D43)) -> 
E44: =IF(D44="","",COUNTIF(Tabulka5[Data],D44)) -> 
E45: =IF(D45="","",COUNTIF(Tabulka5[Data],D45)) -> 
E46: =IF(D46="","",COUNTIF(Tabulka5[Data],D46)) -> 
E47: =IF(D47="","",COUNTIF(Tabulka5[Data],D47)) -> 
E48: =IF(D48="","",COUNTIF(Tabulka5[Data],D48)) -> 
E49: =IF(D49="","",COUNTIF(Tabulka5[Data],D49)) -> 
E50: =IF(D50="","",COUNTIF(Tabulka5[Data],D50)) -> 
E51: =IF(D51="","",COUNTIF(Tabulka5[Data],D51)) -> 
E52: =IF(D52="","",COUNTIF(Tabulka5[Data],D52)) -> 
E53: =IF(D53="","",COUNTIF(Tabulka5[Data],D53)) -> 
E54: =IF(D54="","",COUNTIF(Tabulka5[Data],D54)) -> 
E55: =IF(D55="","",COUNTIF(Tabulka5[Data],D55)) -> 
E56: =IF(D56="","",COUNTIF(Tabulka5[Data],D56)) -> 
E57: =IF(D57="","",COUNTIF(Tabulka5[Data],D57)) -> 
E58: =IF(D58="","",COUNTIF(Tabulka5[Data],D58)) -> 
E59: =IF(D59="","",COUNTIF(Tabulka5[Data],D59)) -> 
E60: =IF(D60="","",COUNTIF(Tabulka5[Data],D60)) -> 
E61: =IF(D61="","",COUNTIF(Tabulka5[Data],D61)) -> 
E62: =IF(D62="","",COUNTIF(Tabulka5[Data],D62)) -> 
E63: =IF(D63="","",COUNTIF(Tabulka5[Data],D63)) -> 
E64: =IF(D64="","",COUNTIF(Tabulka5[Data],D64)) -> 
E65: =IF(D65="","",COUNTIF(Tabulka5[Data],D65)) -> 
E66: =IF(D66="","",COUNTIF(Tabulka5[Data],D66)) -> 
E67: =IF(D67="","",COUNTIF(Tabulka5[Data],D67)) -> 
E68: =IF(D68="","",COUNTIF(Tabulka5[Data],D68)) -> 
E69: =IF(D69="","",COUNTIF(Tabulka5[Data],D69)) -> 
E70: =IF(D70="","",COUNTIF(Tabulka5[Data],D70)) -> 
E71: =IF(D71="","",COUNTIF(Tabulka5[Data],D71)) -> 
E72: =IF(D72="","",COUNTIF(Tabulka5[Data],D72)) -> 
E73: =IF(D73="","",COUNTIF(Tabulka5[Data],D73)) -> 
E74: =IF(D74="","",COUNTIF(Tabulka5[Data],D74)) -> 
E75: =IF(D75="","",COUNTIF(Tabulka5[Data],D75)) -> 
E76: =IF(D76="","",COUNTIF(Tabulka5[Data],D76)) -> 
E77: =IF(D77="","",COUNTIF(Tabulka5[Data],D77)) -> 
E78: =IF(D78="","",COUNTIF(Tabulka5[Data],D78)) -> 
E79: =IF(D79="","",COUNTIF(Tabulka5[Data],D79)) -> 
E80: =IF(D80="","",COUNTIF(Tabulka5[Data],D80)) -> 
E81: =IF(D81="","",COUNTIF(Tabulka5[Data],D81)) ->  | F81: =IF(OR($K$11=0,D81=""),"",IF(D82="",1-I80,ROUND(E81/SUM($E$15:$E$6350),3))) ->  | G81: =IF(OR(D81="",$A$11="nominální"),"",G80+E81) ->  | H81: =IF(OR($K$11=0,D81="",$A$11="nominální"),"",H80+F81) ->  | I81: =IF(OR($K$11=0,D81=""),"",I80+F81) -> 
E82: =IF(D82="","",COUNTIF(Tabulka5[Data],D82)) -> 
E83: =IF(D83="","",COUNTIF(Tabulka5[Data],D83)) -> 
E84: =IF(D84="","",COUNTIF(Tabulka5[Data],D84)) -> 
E85: =IF(D85="","",COUNTIF(Tabulka5[Data],D85)) -> 
E86: =IF(D86="","",COUNTIF(Tabulka5[Data],D86)) -> 
E87: =IF(D87="","",COUNTIF(Tabulka5[Data],D87)) -> 
E88: =IF(D88="","",COUNTIF(Tabulka5[Data],D88)) -> 
E89: =IF(D89="","",COUNTIF(Tabulka5[Data],D89)) -> 
E90: =IF(D90="","",COUNTIF(Tabulka5[Data],D90)) -> 
E91: =IF(D91="","",COUNTIF(Tabulka5[Data],D91)) -> 
E92: =IF(D92="","",COUNTIF(Tabulka5[Data],D92)) -> 
E93: =IF(D93="","",COUNTIF(Tabulka5[Data],D93)) -> 
E94: =IF(D94="","",COUNTIF(Tabulka5[Data],D94)) -> 
E95: =IF(D95="","",COUNTIF(Tabulka5[Data],D95)) -> 
E96: =IF(D96="","",COUNTIF(Tabulka5[Data],D96)) -> 
E97: =IF(D97="","",COUNTIF(Tabulka5[Data],D97)) -> 
E98: =IF(D98="","",COUNTIF(Tabulka5[Data],D98)) -> 
E99: =IF(D99="","",COUNTIF(Tabulka5[Data],D99)) -> 
E100: =IF(D100="","",COUNTIF(Tabulka5[Data],D100)) -> 
E101: =IF(D101="","",COUNTIF(Tabulka5[Data],D101)) -> 
E102: =IF(D102="","",COUNTIF(Tabulka5[Data],D102)) -> 
E103: =IF(D103="","",COUNTIF(Tabulka5[Data],D103)) -> 
E104: =IF(D104="","",COUNTIF(Tabulka5[Data],D104)) -> 
E105: =IF(D105="","",COUNTIF(Tabulka5[Data],D105)) -> 
E106: =IF(D106="","",COUNTIF(Tabulka5[Data],D106)) -> 
E107: =IF(D107="","",COUNTIF(Tabulka5[Data],D107)) -> 
E108: =IF(D108="","",COUNTIF(Tabulka5[Data],D108)) -> 
E109: =IF(D109="","",COUNTIF(Tabulka5[Data],D109)) -> 
E110: =IF(D110="","",COUNTIF(Tabulka5[Data],D110)) -> 
E111: =IF(D111="","",COUNTIF(Tabulka5[Data],D111)) -> 
E112: =IF(D112="","",COUNTIF(Tabulka5[Data],D112)) -> 
E113: =IF(D113="","",COUNTIF(Tabulka5[Data],D113)) -> 
E114: =IF(D114="","",COUNTIF(Tabulka5[Data],D114)) -> 
E115: =IF(D115="","",COUNTIF(Tabulka5[Data],D115)) -> 
E116: =IF(D116="","",COUNTIF(Tabulka5[Data],D116)) -> 
E117: =IF(D117="","",COUNTIF(Tabulka5[Data],D117)) -> 
E118: =IF(D118="","",COUNTIF(Tabulka5[Data],D118)) -> 
E119: =IF(D119="","",COUNTIF(Tabulka5[Data],D119)) -> 
E120: =IF(D120="","",COUNTIF(Tabulka5[Data],D120)) -> 
E121: =IF(D121="","",COUNTIF(Tabulka5[Data],D121)) -> 
E122: =IF(D122="","",COUNTIF(Tabulka5[Data],D122)) -> 
E123: =IF(D123="","",COUNTIF(Tabulka5[Data],D123)) -> 
E124: =IF(D124="","",COUNTIF(Tabulka5[Data],D124)) -> 
E125: =IF(D125="","",COUNTIF(Tabulka5[Data],D125)) -> 
E126: =IF(D126="","",COUNTIF(Tabulka5[Data],D126)) -> 
E127: =IF(D127="","",COUNTIF(Tabulka5[Data],D127)) -> 
E128: =IF(D128="","",COUNTIF(Tabulka5[Data],D128)) -> 
E129: =IF(D129="","",COUNTIF(Tabulka5[Data],D129)) -> 
E130: =IF(D130="","",COUNTIF(Tabulka5[Data],D130)) -> 
E131: =IF(D131="","",COUNTIF(Tabulka5[Data],D131)) -> 
E132: =IF(D132="","",COUNTIF(Tabulka5[Data],D132)) -> 
E133: =IF(D133="","",COUNTIF(Tabulka5[Data],D133)) -> 
E134: =IF(D134="","",COUNTIF(Tabulka5[Data],D134)) -> 
E135: =IF(D135="","",COUNTIF(Tabulka5[Data],D135)) -> 
E136: =IF(D136="","",COUNTIF(Tabulka5[Data],D136)) -> 
E137: =IF(D137="","",COUNTIF(Tabulka5[Data],D137)) -> 
E138: =IF(D138="","",COUNTIF(Tabulka5[Data],D138)) -> 
E139: =IF(D139="","",COUNTIF(Tabulka5[Data],D139)) -> 
E140: =IF(D140="","",COUNTIF(Tabulka5[Data],D140)) -> 
E141: =IF(D141="","",COUNTIF(Tabulka5[Data],D141)) -> 
E142: =IF(D142="","",COUNTIF(Tabulka5[Data],D142)) -> 
E143: =IF(D143="","",COUNTIF(Tabulka5[Data],D143)) -> 
E144: =IF(D144="","",COUNTIF(Tabulka5[Data],D144)) -> 
E145: =IF(D145="","",COUNTIF(Tabulka5[Data],D145)) ->  | F145: =IF(OR($K$11=0,D145=""),"",IF(D146="",1-I144,ROUND(E145/SUM($E$15:$E$6350),3))) ->  | G145: =IF(OR(D145="",$A$11="nominální"),"",G144+E145) ->  | H145: =IF(OR($K$11=0,D145="",$A$11="nominální"),"",H144+F145) ->  | I145: =IF(OR($K$11=0,D145=""),"",I144+F145) -> 
E146: =IF(D146="","",COUNTIF(Tabulka5[Data],D146)) -> 
E147: =IF(D147="","",COUNTIF(Tabulka5[Data],D147)) -> 
E148: =IF(D148="","",COUNTIF(Tabulka5[Data],D148)) -> 
E149: =IF(D149="","",COUNTIF(Tabulka5[Data],D149)) -> 
E150: =IF(D150="","",COUNTIF(Tabulka5[Data],D150)) -> 
E151: =IF(D151="","",COUNTIF(Tabulka5[Data],D151)) -> 
E152: =IF(D152="","",COUNTIF(Tabulka5[Data],D152)) -> 
E153: =IF(D153="","",COUNTIF(Tabulka5[Data],D153)) -> 
E154: =IF(D154="","",COUNTIF(Tabulka5[Data],D154)) -> 
E155: =IF(D155="","",COUNTIF(Tabulka5[Data],D155)) -> 
E156: =IF(D156="","",COUNTIF(Tabulka5[Data],D156)) -> 
E157: =IF(D157="","",COUNTIF(Tabulka5[Data],D157)) -> 
E158: =IF(D158="","",COUNTIF(Tabulka5[Data],D158)) -> 
E159: =IF(D159="","",COUNTIF(Tabulka5[Data],D159)) -> 
E160: =IF(D160="","",COUNTIF(Tabulka5[Data],D160)) -> 
E161: =IF(D161="","",COUNTIF(Tabulka5[Data],D161)) -> 
E162: =IF(D162="","",COUNTIF(Tabulka5[Data],D162)) -> 
E163: =IF(D163="","",COUNTIF(Tabulka5[Data],D163)) -> 
E164: =IF(D164="","",COUNTIF(Tabulka5[Data],D164)) -> 
E165: =IF(D165="","",COUNTIF(Tabulka5[Data],D165)) -> 
E166: =IF(D166="","",COUNTIF(Tabulka5[Data],D166)) -> 
E167: =IF(D167="","",COUNTIF(Tabulka5[Data],D167)) -> 
E168: =IF(D168="","",COUNTIF(Tabulka5[Data],D168)) -> 
E169: =IF(D169="","",COUNTIF(Tabulka5[Data],D169)) -> 
E170: =IF(D170="","",COUNTIF(Tabulka5[Data],D170)) -> 
E171: =IF(D171="","",COUNTIF(Tabulka5[Data],D171)) -> 
E172: =IF(D172="","",COUNTIF(Tabulka5[Data],D172)) -> 
E173: =IF(D173="","",COUNTIF(Tabulka5[Data],D173)) -> 
E174: =IF(D174="","",COUNTIF(Tabulka5[Data],D174)) -> 
E175: =IF(D175="","",COUNTIF(Tabulka5[Data],D175)) -> 
E176: =IF(D176="","",COUNTIF(Tabulka5[Data],D176)) -> 
E177: =IF(D177="","",COUNTIF(Tabulka5[Data],D177)) -> 
E178: =IF(D178="","",COUNTIF(Tabulka5[Data],D178)) -> 
E179: =IF(D179="","",COUNTIF(Tabulka5[Data],D179)) -> 
E180: =IF(D180="","",COUNTIF(Tabulka5[Data],D180)) -> 
E181: =IF(D181="","",COUNTIF(Tabulka5[Data],D181)) -> 
E182: =IF(D182="","",COUNTIF(Tabulka5[Data],D182)) -> 
E183: =IF(D183="","",COUNTIF(Tabulka5[Data],D183)) -> 
E184: =IF(D184="","",COUNTIF(Tabulka5[Data],D184)) -> 
E185: =IF(D185="","",COUNTIF(Tabulka5[Data],D185)) -> 
E186: =IF(D186="","",COUNTIF(Tabulka5[Data],D186)) -> 
E187: =IF(D187="","",COUNTIF(Tabulka5[Data],D187)) -> 
E188: =IF(D188="","",COUNTIF(Tabulka5[Data],D188)) -> 
E189: =IF(D189="","",COUNTIF(Tabulka5[Data],D189)) -> 
E190: =IF(D190="","",COUNTIF(Tabulka5[Data],D190)) -> 
E191: =IF(D191="","",COUNTIF(Tabulka5[Data],D191)) -> 
E192: =IF(D192="","",COUNTIF(Tabulka5[Data],D192)) -> 
E193: =IF(D193="","",COUNTIF(Tabulka5[Data],D193)) -> 
E194: =IF(D194="","",COUNTIF(Tabulka5[Data],D194)) -> 
E195: =IF(D195="","",COUNTIF(Tabulka5[Data],D195)) -> 
E196: =IF(D196="","",COUNTIF(Tabulka5[Data],D196)) -> 
E197: =IF(D197="","",COUNTIF(Tabulka5[Data],D197)) -> 
E198: =IF(D198="","",COUNTIF(Tabulka5[Data],D198)) -> 
E199: =IF(D199="","",COUNTIF(Tabulka5[Data],D199)) -> 
E200: =IF(D200="","",COUNTIF(Tabulka5[Data],D200)) -> 
E201: =IF(D201="","",COUNTIF(Tabulka5[Data],D201)) -> 
E202: =IF(D202="","",COUNTIF(Tabulka5[Data],D202)) -> 
... 6148 more rows

Sheet Test normality (hidden)
A1: suma_2 | B1: suma_3 | C1: suma_4 | D1: šikmost | E1: var_šikmost | F1: špičatost | G1: var_špičatost | H1: t | I1: p-hodnota | K1: alfa | N1: 0.01
A2: =SUM(IF(('Numerická proměnná'!$A$14:$A$1727<>""),('Numerická proměnná'!$A$14:$A$1727-'Numerická proměnná'!$G$17)^2)) -> 6180.36 | B2: =SUM(IF(('Numerická proměnná'!$A$14:$A$1727<>""),('Numerická proměnná'!$A$14:$A$1727-'Numerická proměnná'!$G$17)^3)) -> -86363.3376 | C2: =SUM(IF(('Numerická proměnná'!$A$14:$A$1727<>""),('Numerická proměnná'!$A$14:$A$1727-'Numerická proměnná'!$G$17)^4)) -> 4711179.188 | D2: ='Numerická proměnná'!G29 -> -1.804680309 | E2: =IF(Rozsah<1,"",6*(Rozsah-2)/((Rozsah+1)*(Rozsah+3))) -> 0.05652215707 | F2: ='Numerická proměnná'!G30 -> 9.880510804 | G2: =IF(Rozsah<1,"",(24*Rozsah*(Rozsah-2)*(Rozsah-3))/((Rozsah+1)*(Rozsah+1)*(Rozsah+3)*(Rozsah+5))) -> 0.2067948792 | H2: =((D2^2)/E2)+((F2^2)/G2) -> 529.7048479 | I2: =ROUND(2*MIN(1-CHIDIST(H2,2),CHIDIST(H2,2)),4) -> 0 | K2: ='Numerická proměnná'!J34 -> 0.01 | L2: =IF($I$2=0,"<<<0,001",CONCATENATE("=",I2)) -> <<<0,001 | N2: 0.05
N3: 0.1
A4: Kombinovaný test na základě šikmosti a špičatosti
A7: =CONCATENATE("Na hladině významnosti ",$K$2," zamítáme předpoklad o normalitě výběru (p-hodnota",$L$2,").") -> Na hladině významnosti 0,01 zamítáme předpoklad o normalitě výběru (p-hodnota<<<0,001).
A8: =CONCATENATE("Na hladině významnosti ",$K$2," nezamítáme předpoklad o normalitě výběru (p-hodnota",$L$2,").") -> Na hladině významnosti 0,01 nezamítáme předpoklad o normalitě výběru (p-hodnota<<<0,001).
A10: Rozhodnutí
A11: =IF($I$2<$K$2,$A$7,$A$8) -> Na hladině významnosti 0,01 zamítáme předpoklad o normalitě výběru (p-hodnota<<<0,001).
